Workbook

Sheet AER CF (hidden)
B1: AER CONDITIONAL FORMATTING
B3: CELLS FLAGED "Y" and greyed out will be greyed out in the worksheets.
B4: CONDITIONAL FORMATTING MAP
F5: =INDEX(dms_CF_3.6.1, MATCH(dms_TradingName,dms_CF_TradingName))="Y" | G5: =INDEX(dms_CF_3.6.5, MATCH(dms_TradingName,dms_CF_TradingName))="Y" | H5: =INDEX(dms_CF_3.6.6.1, MATCH(dms_TradingName,dms_CF_TradingName))="Y" | I5: =INDEX(dms_CF_3.6.6.2, MATCH(dms_TradingName,dms_CF_TradingName))="Y" | J5: =INDEX(dms_CF_3.6.6.3, MATCH(dms_TradingName,dms_CF_TradingName))="Y" | K5: =INDEX(dms_CF_3.6.7.1, MATCH(dms_TradingName,dms_CF_TradingName))="Y" | L5: =INDEX(dms_CF_3.6.7.2, MATCH(dms_TradingName,dms_CF_TradingName))="Y" | M5: =INDEX(dms_CF_3.6.7.3, MATCH(dms_TradingName,dms_CF_TradingName))="Y" | N5: =INDEX(dms_CF_3.6.7.4, MATCH(dms_TradingName,dms_CF_TradingName))="Y" | O5: =INDEX(dms_CF_3.6.8, MATCH(dms_TradingName,dms_CF_TradingName))="Y" | P5: =INDEX(dms_CF_4.1, MATCH(dms_TradingName,dms_CF_TradingName))="Y" | Q5: =INDEX(dms_CF_6.8, MATCH(dms_TradingName,dms_CF_TradingName))="Y" | R5: =INDEX(dms_CF_7.12, MATCH(dms_TradingName,dms_CF_TradingName))="Y" | S5: =INDEX(dms_CF_8.1_A, MATCH(dms_TradingName,dms_CF_TradingName))="Y" | T5: =INDEX(dms_CF_8.1_B, MATCH(dms_TradingName,dms_CF_TradingName))="Y" | U5: =INDEX(dms_CF_8.1_Neg, MATCH(dms_TradingName,dms_CF_TradingName))="Y" -> TRUE | V5: =INDEX(dms_CF_4.4.1_Neg, MATCH(dms_TradingName,dms_CF_TradingName))="Y" | Y5: =INDEX(dms_CF_F10, MATCH(dms_TradingName,dms_CF_TradingName))="Y"
B6: dms_CF_TradingName | C6: JurisdictionList | D6: Sector | E6: Segment | F6: dms_CF_3.6.1 | G6: dms_CF_3.6.5 | H6: dms_CF_3.6.6.1 | I6: dms_CF_3.6.6.2 | J6: dms_CF_3.6.6.3 | K6: dms_CF_3.6.7.1 | L6: dms_CF_3.6.7.2 | M6: dms_CF_3.6.7.3 | N6: dms_CF_3.6.7.4 | O6: dms_CF_3.6.8 | P6: dms_CF_4.1 | Q6: dms_CF_6.8 (set from dms_MAIFI_flag) | R6: dms_CF_7.12 | S6: dms_CF_8.1_A (and 8.4) | T6: dms_CF_8.1_B (and 8.4) | U6: dms_CF_8.1_Neg (and 8.4) | V6: dms_CF_4.4.1 | W6: dms_CF_MAIFI_flag (set from dms_MAIFI_flag) | X6: 9.5 TUOS (set from Jurisdiction) | Y6: dms_CF_F10
B7: Amadeus | C7: NT | D7: Gas | E7: Transmission | F7: - | G7: - | H7: - | I7: - | J7: - | K7: - | L7: - | M7: - | N7: - | O7: - | P7: - | Q7: - | R7: - | S7: - | T7: - | U7: - | V7: - | W7: - | X7: - | Y7: -
B8: APA GasNet | C8: Vic | D8: Gas | E8: Transmission | F8: - | G8: - | H8: - | I8: - | J8: - | K8: - | L8: - | M8: - | N8: - | O8: - | P8: - | Q8: - | R8: - | S8: - | T8: - | U8: - | V8: - | W8: - | X8: - | Y8: -
B9: Ausgrid | C9: NSW | D9: Electricity | E9: Distribution | G9: Y | H9: N | I9: N | J9: N | K9: N | L9: N | M9: N | N9: Y | O9: N | P9: N | Q9: =IFERROR(IF(dms_MAIFI_flag="Yes","N","Y"),"Y") -> Y | R9: Y | S9: N | T9: Y | U9: Y | V9: N | W9: =IFERROR(LEFT(dms_MAIFI_flag),"N") -> N | X9: =IF('AER CF'!$C7="Vic","Y","N") -> N
B10: Ausgrid (Tx Assets) | C10: NSW | D10: Electricity | E10: Distribution | G10: Y | H10: N | I10: N | J10: N | K10: N | L10: N | M10: N | N10: Y | O10: N | P10: N | Q10: =IFERROR(IF(dms_MAIFI_flag="Yes","N","Y"),"Y") -> Y | R10: Y | S10: N | T10: Y | U10: Y | V10: N | W10: =IFERROR(LEFT(dms_MAIFI_flag),"N") -> N | X10: =IF('AER CF'!$C8="Vic","Y","N") -> Y
B11: AusNet (D) | C11: Vic | D11: Electricity | E11: Distribution | G11: N | H11: N | K11: N | L11: N | M11: N | N11: N | O11: N | P11: N | Q11: =IFERROR(IF(dms_MAIFI_flag="Yes","N","Y"),"Y") -> Y | R11: N | S11: N | T11: N | U11: Y | V11: N | W11: =IFERROR(LEFT(dms_MAIFI_flag),"N") -> N | X11: =IF('AER CF'!$C9="Vic","Y","N") -> N
B12: AusNet (T) | C12: Vic | D12: Electricity | E12: Transmission | G12: N | K12: N | L12: N | M12: N | N12: N | O12: N | P12: Y | Q12: =IFERROR(IF(dms_MAIFI_flag="Yes","N","Y"),"Y") -> Y | R12: N | S12: N | T12: N | U12: Y | V12: N | W12: =IFERROR(LEFT(dms_MAIFI_flag),"N") -> N | X12: =IF('AER CF'!$C10="Vic","Y","N") -> N
B13: Australian Distribution Co. | C13: NSW | D13: Electricity | E13: Distribution | F13: N | G13: N | H13: N | I13: N | K13: N | L13: N | M13: N | N13: N | O13: N | P13: N | Q13: =IFERROR(IF(dms_MAIFI_flag="Yes","N","Y"),"Y") -> Y | R13: N | S13: N | T13: N | U13: N | V13: N | W13: =IFERROR(LEFT(dms_MAIFI_flag),"N") -> N | X13: =IF('AER CF'!$C13="Vic","Y","N") -> N
B14: Australian Distribution Co. (Vic) | C14: Vic | D14: Electricity | E14: Distribution | F14: N | G14: N | H14: N | I14: N | K14: N | L14: N | M14: N | N14: N | O14: N | P14: N | Q14: =IFERROR(IF(dms_MAIFI_flag="Yes","N","Y"),"Y") -> Y | R14: N | S14: N | T14: N | U14: N | V14: N | W14: =IFERROR(LEFT(dms_MAIFI_flag),"N") -> N | X14: =IF('AER CF'!$C14="Vic","Y","N") -> Y
B15: CitiPower | C15: Vic | D15: Electricity | E15: Distribution | G15: N | H15: N | K15: N | L15: N | M15: N | N15: N | O15: N | P15: N | Q15: =IFERROR(IF(dms_MAIFI_flag="Yes","N","Y"),"Y") -> Y | R15: N | S15: N | T15: N | U15: Y | V15: N | W15: =IFERROR(LEFT(dms_MAIFI_flag),"N") -> N | X15: =IF('AER CF'!$C15="Vic","Y","N") -> Y
B16: Directlink | C16: Qld | D16: Electricity | E16: Transmission | G16: N | K16: N | L16: N | M16: N | N16: N | O16: N | P16: - | Q16: =IFERROR(IF(dms_MAIFI_flag="Yes","N","Y"),"Y") -> Y | R16: N | S16: N | T16: Y | U16: Y | V16: N | W16: =IFERROR(LEFT(dms_MAIFI_flag),"N") -> N | X16: =IF('AER CF'!$C16="Vic","Y","N") -> N
B17: ElectraNet | C17: SA | D17: Electricity | E17: Transmission | G17: N | K17: N | L17: N | M17: N | N17: N | O17: N | P17: - | Q17: =IFERROR(IF(dms_MAIFI_flag="Yes","N","Y"),"Y") -> Y | R17: N | S17: N | T17: Y | U17: Y | V17: N | W17: =IFERROR(LEFT(dms_MAIFI_flag),"N") -> N | X17: =IF('AER CF'!$C17="Vic","Y","N") -> N
B18: Endeavour Energy | C18: NSW | D18: Electricity | E18: Distribution | G18: Y | H18: N | I18: Y | J18: Y | K18: N | L18: N | M18: N | N18: Y | O18: N | P18: N | Q18: =IFERROR(IF(dms_MAIFI_flag="Yes","N","Y"),"Y") -> Y | R18: Y | S18: N | T18: Y | U18: Y | V18: Y | W18: =IFERROR(LEFT(dms_MAIFI_flag),"N") -> N | X18: =IF('AER CF'!$C18="Vic","Y","N") -> N
B19: Energex | C19: Qld | D19: Electricity | E19: Distribution | G19: Y | H19: N | K19: N | L19: N | M19: N | N19: N | O19: N | P19: N | Q19: =IFERROR(IF(dms_MAIFI_flag="Yes","N","Y"),"Y") -> Y | R19: Y | S19: N | T19: Y | U19: Y | V19: Y | W19: =IFERROR(LEFT(dms_MAIFI_flag),"N") -> N | X19: =IF('AER CF'!$C19="Vic","Y","N") -> N
B20: Ergon Energy | C20: Qld | D20: Electricity | E20: Distribution | G20: Y | H20: N | I20: Y | J20: Y | K20: N | L20: N | M20: N | N20: N | O20: N | P20: N | Q20: =IFERROR(IF(dms_MAIFI_flag="Yes","N","Y"),"Y") -> Y | R20: Y | S20: N | T20: Y | U20: Y | V20: N | W20: =IFERROR(LEFT(dms_MAIFI_flag),"N") -> N | X20: =IF('AER CF'!$C20="Vic","Y","N") -> N
B21: Essential Energy | C21: NSW | D21: Electricity | E21: Distribution | G21: Y | H21: N | I21: Y | J21: Y | K21: N | L21: N | M21: N | N21: Y | O21: N | P21: N | Q21: =IFERROR(IF(dms_MAIFI_flag="Yes","N","Y"),"Y") -> Y | R21: Y | S21: N | T21: Y | U21: Y | V21: N | W21: =IFERROR(LEFT(dms_MAIFI_flag),"N") -> N | X21: =IF('AER CF'!$C21="Vic","Y","N") -> N
B22: Evoenergy Distribution | C22: ACT | D22: Electricity | E22: Distribution | G22: Y | H22: N | I22: Y | J22: Y | K22: Y | L22: Y | M22: N | N22: Y | O22: N | P22: Y | Q22: =IFERROR(IF(dms_MAIFI_flag="Yes","N","Y"),"Y") -> Y | R22: Y | S22: N | T22: Y | U22: Y | V22: N | W22: =IFERROR(LEFT(dms_MAIFI_flag),"N") -> N | X22: =IF('AER CF'!$C22="Vic","Y","N") -> N
B23: Evoenergy Distribution (Tx Assets) | C23: ACT | D23: Electricity | E23: Distribution | G23: Y | H23: N | I23: Y | J23: Y | K23: Y | L23: Y | M23: N | N23: Y | O23: N | P23: Y | Q23: =IFERROR(IF(dms_MAIFI_flag="Yes","N","Y"),"Y") -> Y | R23: Y | S23: N | T23: Y | U23: Y | V23: N | W23: =IFERROR(LEFT(dms_MAIFI_flag),"N") -> N | X23: =IF('AER CF'!$C23="Vic","Y","N") -> N
B24: Jemena Electricity | C24: Vic | D24: Electricity | E24: Distribution | G24: N | H24: N | K24: N | L24: N | M24: N | N24: N | O24: N | P24: N | Q24: =IFERROR(IF(dms_MAIFI_flag="Yes","N","Y"),"Y") -> Y | R24: N | S24: N | T24: N | U24: Y | V24: N | W24: =IFERROR(LEFT(dms_MAIFI_flag),"N") -> N | X24: =IF('AER CF'!$C25="Vic","Y","N") -> Y
B25: JGN | C25: Vic | D25: Gas | E25: Distribution | F25: - | G25: - | H25: - | I25: - | J25: - | K25: - | L25: - | M25: - | N25: - | O25: - | P25: - | Q25: - | R25: - | S25: - | T25: - | U25: - | V25: - | W25: - | X25: - | Y25: -
B26: Murraylink | C26: SA | D26: Electricity | E26: Transmission | G26: N | K26: N | L26: N | M26: N | N26: N | O26: N | P26: - | Q26: =IFERROR(IF(dms_MAIFI_flag="Yes","N","Y"),"Y") -> Y | R26: N | S26: N | T26: Y | U26: Y | V26: N | W26: =IFERROR(LEFT(dms_MAIFI_flag),"N") -> N | X26: =IF('AER CF'!$C26="Vic","Y","N") -> N
B27: Power and Water | C27: NT | D27: Electricity | E27: Distribution | G27: N | H27: N | K27: N | L27: Y | M27: N | N27: N | O27: N | P27: Y | Q27: =IFERROR(IF(dms_MAIFI_flag="Yes","N","Y"),"Y") -> Y | R27: Y | S27: Y | T27: Y | U27: Y | V27: N | W27: =IFERROR(LEFT(dms_MAIFI_flag),"N") -> N | X27: =IF('AER CF'!$C27="Vic","Y","N") -> N
B28: Powercor Australia | C28: Vic | D28: Electricity | E28: Distribution | G28: N | H28: N | K28: N | L28: N | M28: N | N28: N | O28: N | P28: N | Q28: =IFERROR(IF(dms_MAIFI_flag="Yes","N","Y"),"Y") -> Y | R28: N | S28: N | T28: N | U28: Y | V28: N | W28: =IFERROR(LEFT(dms_MAIFI_flag),"N") -> N | X28: =IF('AER CF'!$C28="Vic","Y","N") -> Y
B29: Powerlink | C29: Qld | D29: Electricity | E29: Transmission | G29: N | K29: N | L29: N | M29: N | N29: N | O29: N | P29: - | Q29: =IFERROR(IF(dms_MAIFI_flag="Yes","N","Y"),"Y") -> Y | R29: N | S29: N | T29: Y | U29: Y | V29: N | W29: =IFERROR(LEFT(dms_MAIFI_flag),"N") -> N | X29: =IF('AER CF'!$C29="Vic","Y","N") -> N
B30: Roma to Brisbane Pipeline | C30: Qld | D30: Gas | E30: Transmission | F30: - | G30: - | H30: - | I30: - | J30: - | K30: - | L30: - | M30: - | N30: - | O30: - | P30: - | Q30: - | R30: - | S30: - | T30: - | U30: - | V30: - | W30: - | X30: - | Y30: -
B31: SA Power Networks | C31: SA | D31: Electricity | E31: Distribution | G31: Y | H31: N | K31: N | L31: N | M31: N | N31: N | O31: N | P31: N | Q31: =IFERROR(IF(dms_MAIFI_flag="Yes","N","Y"),"Y") -> Y | R31: Y | S31: N | T31: Y | U31: N | V31: N | W31: =IFERROR(LEFT(dms_MAIFI_flag),"N") -> N | X31: =IF('AER CF'!$C31="Vic","Y","N") -> N
B32: TasNetworks (D) | C32: Tas | D32: Electricity | E32: Distribution | G32: Y | H32: N | K32: N | L32: N | M32: N | N32: N | O32: N | P32: N | Q32: =IFERROR(IF(dms_MAIFI_flag="Yes","N","Y"),"Y") -> Y | R32: Y | S32: N | T32: Y | U32: Y | V32: N | W32: =IFERROR(LEFT(dms_MAIFI_flag),"N") -> N | X32: =IF('AER CF'!$C32="Vic","Y","N") -> N
B33: TasNetworks (T) | C33: Tas | D33: Electricity | E33: Transmission | G33: N | K33: N | L33: N | M33: N | N33: N | O33: N | P33: - | Q33: =IFERROR(IF(dms_MAIFI_flag="Yes","N","Y"),"Y") -> Y | R33: N | S33: N | T33: Y | U33: Y | V33: N | W33: =IFERROR(LEFT(dms_MAIFI_flag),"N") -> N | X33: =IF('AER CF'!$C33="Vic","Y","N") -> N
B34: TransGrid | C34: NSW | D34: Electricity | E34: Transmission | G34: N | K34: N | L34: N | M34: N | N34: N | O34: N | P34: - | Q34: =IFERROR(IF(dms_MAIFI_flag="Yes","N","Y"),"Y") -> Y | R34: N | S34: N | T34: Y | U34: Y | V34: N | W34: =IFERROR(LEFT(dms_MAIFI_flag),"N") -> N | X34: =IF('AER CF'!$C34="Vic","Y","N") -> N
B35: United Energy | C35: Vic | D35: Electricity | E35: Distribution | G35: N | H35: N | K35: N | L35: N | M35: N | N35: N | O35: N | P35: N | Q35: =IFERROR(IF(dms_MAIFI_flag="Yes","N","Y"),"Y") -> Y | R35: N | S35: N | T35: N | U35: Y | V35: N | W35: =IFERROR(LEFT(dms_MAIFI_flag),"N") -> N | X35: =IF('AER CF'!$C35="Vic","Y","N") -> Y
B38: Confidential
B39: Amended
B41: Worksheet 6.2 STPIS reliability
B42: Formula | F42: Applied to:
B44: =INDEX(dms_CBD_flag,MATCH(dms_TradingName,dms_TradingName_List))="NO" | F44: $D$11,$D$17,$D$23,$D$33,$D$39,$D$45,$D$55,$D$61,$D$67,$D$77,$D$83,$D$89
B45: =INDEX(dms_Urban_flag,MATCH(dms_TradingName,dms_TradingName_List))="NO" | F45: $D$12,$D$18,$D$24,$D$56,$D$62,$D$78,$D$68,$D$84
B46: =INDEX(dms_ShortRural_flag,MATCH(dms_TradingName,dms_TradingName_List))="NO" | F46: $D$13,$D$19,$D$25,$D$57,$D$63,$D$69,$D$79,$D$85
B47: =INDEX(dms_LongRural_flag,MATCH(dms_TradingName,dms_TradingName_List))="NO" | F47: $D$14,$D$20,$D$26,$D$58,$D$64,$D$65,$D$70,$D$71,$D$80,$D$86
B48: =INDEX(dms_FeederType_5_flag,MATCH(dms_TradingName,dms_TradingName_List))="NO" | F48: $D$87,$D$81,$D$71,$D$65,$D$59,$D$49,$D$43,$D$37,$D$21,$D$15
B49: =dms_MAIFI_Flag="No" | F49: $D$55:$D$72
B52: Business & other details
B53: =(INDEX(dms_Model_Span,MATCH(dms_Model,dms_Model_List))>1)
B54: =(INDEX(dms_Model_Span,MATCH(dms_Model,dms_Model_List))=1)
B57: STYLES IN USE
B58: HEADING ONE | C58: dms_1
B59: HEADING TWO | C59: dms_2
B60: HEADING THREE | C60: dms_3
B61: HEADING FOUR | C61: dms_4
B62: HEADING FIVE | C62: dms_5
B63: 5.111 | C63: dms_NUM
B64: 0.0545 | C64: dms_NUM%
B65: 5.5555 | C65: dms_NUM3d
B66: Text description | C66: dms_Row_Locked
B67: Text description | C67: dms_Row1
B68: Text description | C68: dms_Row2
B69: Total | C69: dms_T1
B70: Total | C70: dms_T2
B71: EXPENSES | C71: dms_BH
B72: 2019 | C72: dms_BY1
B73: 2019 | C73: dms_BY2
B74: VOLUMES | C74: dms_GH
B75: 2019 | C75: dms_GY1
B76: 2019 | C76: dms_GY2

Sheet AER NRs (hidden)
B1: AER NAMED RANGES
B3: DROP DOWN SELECTORS USED IN WORKBOOKS
B5: COVER SHEET | C5: dms_DataQuality_List | D5: dms_Confid_status_List
C6: -- select -- | D6: -- select --
C7: Actual | D7: Public
C8: Estimate | D8: Confidential
C9: Consolidated
C12: For all files either AER or business needs to be able to specify the type of submission | D12: For PTRM & RFM templates we must provide a choice in case they change their form of control - otherwise it is drawn from the business specific lookup table above.
C13: dms_SourceList | D13: dms_FormControl_Choices
C14: -- select -- | D14: Revenue cap
C15: After appeal | D15: Revenue yield
C16: Draft decision | D16: Tariff cap
C17: Final decision | D17: Weighted average price cap
C18: PTRM update 1
C19: PTRM update 2
C20: PTRM update 3
C21: PTRM update 4
C22: PTRM update 5
C23: PTRM update 6
C24: PTRM update 7
C25: Reallocated
C26: Recast
C27: Regulatory proposal
C28: Reporting
C29: Revised regulatory proposal
K32: This is used to create an image to insert on 6.3 STPIS sheet - not for dropdown lists. | N32: GAS
B33: CA & RESET RINS DNSP | C33: dms_DNSP_020301_SubstationType | D33: dms_DNSP_020301_ProjectType | E33: dms_DNSP_020301_ProjectTrigger | F33: dms_DNSP_020302_ProjectType | G33: dms_DNSP_020302_ProjectTrigger | H33: dms_STPIS_Exclusion_List | I33: dms_Reason_Interruption | J33: dms_Reason_Interruption_Detailed | K33: Reason for interruption | N33: dms_N0205_AssetType
C34: Subtransmission substation | D34: New substation establishment | E34: Demand growth | F34: New line on new route - single circuit | G34: Demand growth | H34: Weather | I34: Animal | J34: Animal impact | K34: Animal | L34: Animal impact | N34: Cast Iron
C35: Zone substation | D35: Substation upgrade - capacity | E35: Voltage issues | F35: New line on new route - dual circuit | G35: Voltage issues | H35: Equipment failure | I35: Asset failure | J35: Animal nesting/burrowing, etc and other | L35: Animal nesting/burrowing, etc and other | N35: PVC
C36: Switching station | D36: Substation upgrade - voltage | E36: Reactive power issue | F36: New line on new route - other | G36: Reactive power issue | H36: Operational error | I36: Other | J36: Other | L36: Other | N36: Polyamide
C37: Other | D37: Other | E37: Fault level issues | F37: Line rebuild over existing route - single circuit | G37: Fault level issues | H37: Vegetation | I37: Overloads | J37: LV | K37: Asset failure | L37: LV | N37: High density polyethylene (80)
E38: Safety | F38: Line rebuild over existing route - dual circuit | G38: Net market benefit | H38: Animals | I38: Planned | J38: Distribution substation | L38: Distribution substation | N38: High density polyethylene (100)
E39: Environment | F39: Reconductor - Single circuit | G39: Safety | H39: Third party impacts | I39: Network business | J39: HV | L39: HV | N39: High density polyethylene (250)
E40: Other | F40: Reconductor - Dual circuit | G40: Environment | H40: Transmission failure | I40: Third party | J40: Zone substation | L40: Zone substation | N40: High density polyethylene (575)
F41: Reconductor - Other | G41: Other | H41: Load shedding | I41: Unknown | J41: Subtransmission | L41: Subtransmission | N41: Medium density polyethylene
F42: Line upgrade - raising/retensoring | H42: Inter-distributor connection failure | I42: Vegetation | J42: insert description of 'other' | K42: Other | L42: insert description of 'other' | N42: Unprotected steel
F43: Line upgrade - voltage upgrade | H43: Other | I43: Weather | J43: Network error | K43: Overloads | N43: Protected steel
F44: Line upgrade - capacity | I44: 2 - STPIS Exclusion (3.3)(a) | J44: Switching and protection error | K44: Planned | N44: Other
F45: String spare circuit | I45: 3 - STPIS Exclusion (3.3)(a) | J45: Fire | K45: Network business | L45: Network error
F46: Other | I46: 4 - STPIS Exclusion (3.3)(a) | J46: Other | L46: Switching and protection error
I47: 5 - STPIS Exclusion (3.3)(a) | J47: Dig-in | K47: Third party | L47: Fire
I48: 6 - STPIS Exclusion (3.3)(a) | J48: Unauthorised access | L48: Other
I49: 7 - STPIS Exclusion (3.3)(a) | J49: Vehicle impact | L49: Dig-in
J50: Unknown | L50: Unauthorised access
J51: Blow-in/Fall-in - NSP responsibility | L51: Vehicle impact
J52: Grow-in - NSP responsibility | K52: Unknown | L52: Unknown
J53: Blow-in/Fall-in - Other responsible party | K53: Vegetation | L53: Blow-in/Fall-in - NSP responsibility
J54: Grow-in - Other responsible party | L54: Grow-in - NSP responsibility
L55: Blow-in/Fall-in - Other responsible party
L56: Grow-in - Other responsible party
K57: Weather
K58: 2 - STPIS Exclusion (3.3)(a)
K59: 3 - STPIS Exclusion (3.3)(a)
K60: 4 - STPIS Exclusion (3.3)(a)
K61: 5 - STPIS Exclusion (3.3)(a)
K62: 6 - STPIS Exclusion (3.3)(a)
K63: 7 - STPIS Exclusion (3.3)(a)
B66: CA & RESET RINS TNSP | C66: dms_TNSP_0203_SubstationType | D66: dms_TNSP_020301_ProjectType | E66: dms_TNSP_020301_ProjectTrigger | F66: dms_TNSP_020302_ProjectType | G66: dms_TNSP_0203_ProjectTrigger
C67: Terminal station | D67: New substation establishment | E67: Demand growth | F67: New line on new route - single circuit | G67: Demand growth
C68: Switching station | D68: Capacity upgrade | E68: Voltage issues | F68: New line on new route - dual circuit | G68: Voltage issues
C69: Transmission substation | D69: Voltage upgrade | E69: Reactive power issue | F69: New line on new route - other | G69: Reactive power issue
C70: Other | D70: Other | E70: Fault level issues | F70: Line rebuild over existing route - single circuit | G70: Fault level issues
E71: Net market benefit | F71: Line rebuild over existing route - dual circuit | G71: Net market benefit
E72: Safety | F72: Reconductor - Single circuit | G72: Safety
E73: Environment | F73: Reconductor - Dual circuit | G73: Environment
E74: Other | F74: Reconductor - Other | G74: Other
F75: Line upgrade - raising/retensoring
F76: Line upgrade - voltage upgrade
F77: Line upgrade - capacity
F78: String spare circuit
F79: Other
B83: NAMED RANGES USED IN ETL PROCESS
M84: GAS ARR & RESET
B85: CA & RESET RINS DNSP ONLY | C85: dms_020303_01_UOM | D85: dms_020501_01_UOM | E85: dms_020501_02_UOM | F85: dms_020501_03_UOM | G85: dms_020501_04_UOM | H85: dms_020701_01_UOM | I85: dms_020701_02_UOM | J85: dms_020701_01_Rows | K85: dms_040102_01_UOM | L85: dms_040102_04_UOM | M85: dms_S140101_UOM | N85: dms_S140201_UOM | O85: dms_E050201_UOM | P85: dms_E050202_UOM
C86: Circuit line length in km | D86: 0's | E86: 0's | F86: 0's | G86: 0's | H86: km | I86: km | J86: Route line length within zone | K86: 0's | L86: days | M86: number | N86: number per km | O86: per metre per connection | P86: metres per connection
C87: Circuit line length in km | D87: 0's | E87: 0's | F87: 0's | G87: 0's | H87: 0's | I87: 0's | J87: Number of maintenance spans | K87: 0's | L87: 0's | M87: number | N87: number | O87: per service per connection | P87: number per connection
C88: Circuit line length in km | D88: MVA added | E88: MVA added | F88: MVA added | G88: MVA added | H88: km | I88: km | J88: Total length of maintenance spans | K88: 0's | L88: $0s | M88: number | N88: number | O88: number per connection | P88: number per connection
C89: Circuit line length in km | D89: 0's | E89: 0's | F89: 0's | G89: 0's | H89: km | I89: km | J89: Length of vegetation corridors | K89: $0s | L89: 0's | M89: km
C90: Number | D90: total spend $0s | E90: total spend $0s | F90: total spend $0s | G90: total spend $0s | H90: 0's | I90: 0's | J90: Average number of trees per maintenance span
C91: Number | D91: net circuit km added | E91: net circuit km added | F91: net circuit km added | G91: net circuit km added | H91: years | I91: years | J91: Average frequency of cutting cycle
C92: Number | D92: total spend $0s | E92: total spend $0s | F92: total spend $0s | G92: total spend $0s
D93: net circuit km added | E93: net circuit km added | F93: net circuit km added | G93: net circuit km added
D94: total spend $0s | E94: total spend $0s | F94: total spend $0s | G94: total spend $0s
D95: 0's | F95: $0s
D96: 0's
D97: 0's
D98: $0s
B101: CA & RESET RINS TNSP ONLY | C101: dms_020701_01_UOM
C102: km
C103: 0's
C104: km
C105: 0's
C106: km
C107: metres
C108: years
B111: CA & RESET RINS DNSP & TNSP | C111: dms_020603_01_UOM
C112: 0's
C113: 0's
C114: 0's
C115: 0's
C116: (per cent)
B119: EB & RESET RINS DNSP ONLY | C119: dms_030601_01_UOM | D119: dms_030601_02_UOM | E119: dms_030701_01_UOM | F119: dms_030702_01_UOM | G119: dms_030703_01_UOM
C120: minutes/customer | D120: minutes/customer | E120: Customer / km | F120: % | G120: km
C121: minutes/customer | D121: minutes/customer | E121: MWh/customer | F121: Number of spans
C122: interruptions/customer | D122: interruptions/customer | E122: kVA / customer | F122: Number of spans
C123: interruptions/customer | D123: interruptions/customer | F123: Number of spans
F124: Number of spans
F125: Years
F126: Years
F127: Trees
F128: Trees
F129: Defects
F130: Defects
F131: Spans
F132: km
F133: Spans
C135: WHEN INSERTING COVER SHEET INTO A TNSP FILE - APPLY THESE NAMED RANGES
B136: EB & RESET RINS TNSP ONLY | C136: dms_030601_01_UOM | E136: dms_030701_01_UOM | F136: dms_030702_01_UOM
C137: % | E137: Number of spans | F137: km
C138: number | E138: Years | F138: %
C139: number | E139: Trees | F139: km
C140: % | E140: Defects | F140: number
C141: number | E141: Number of spans
C142: number | E142: km
C143: % | E143: km
C144: number | E144: Number of spans
C145: number
C146: %
C147: number
C148: %
C149: number
C150: %
C151: number
B153: EB & RESET RINS DNSP & TNSP | C153: dms_EB_RAB_PIT
C154: Beginning of year
C155: End of year
C156: End of year
C157: End of year
C158: End of year
C159: End of year
B161: ARR DNSP ONLY | C161: dms_030605_UOM | D161: dms_03060703_UOM | E161: dms_E020202_UOM | F161: Spare
C162: number | D162: number | E162: Length of mains replaced
C163: number | D163: number | E163: Number of services replaced
C164: number | D164: number
C165: number | D165: number
C166: number | D166: (per cent)
C167: number
C168: number
C169: number
C170: number
C171: number
C172: number
C173: number
C174: (per cent)
C175: (per cent)
B177: RFM | C177: dms_Beg | D177: dms_Mid | E177: dms_End
C178: Beginning of year | D178: Mid year | E178: End of Year
B180: PTRM | C180: dms_PTRM_RAB_PIT | D180: dms_PTRM_TAB_PIT | E180: DMS_Xfactor
C181: Beginning of year | D181: Beginning of year | E181: x factors
C182: End of year | D182: End of year
C183: End of year | D183: End of year
C184: End of year | D184: End of year
C185: End of year
B188: STPIS & MIC NAMED RANGES
B190: These "row descriptions" are the column headings in the various templates but become row descriptions in the ETL process
B192: Table 6.3 sustained interruptions - row descriptions | C192: dms_060301_CustNo_Affected_Row | D192: dms_060301_Avg_Duration_Sustained_Int_Row | E192: dms_060301_Effect_unplanned_SAIDI_Row | F192: dms_060301_Effect_unplanned_SAIFI_Row
C193: Number of customers affected by the interruption | D193: Average duration of sustained customer interruption | E193: Effect on unplanned SAIDI | F193: Effect on unplanned SAIFI
B196: Table 6.1 telephone answering - row descriptions and start date | C196: dms_060101_Rows | D196: dms_060102_Rows | E196: dms_060101_StartDateTxt
C197: Total number of calls (after removing excluded events) | D197: Number of calls answered within 30 seconds (after excluding excluded events) | E197: =dms_060701_StartDateTxt -> 1-Jul-2016
B200: Table 6.8.1 - row descriptions | C200: dms_060801_01_Rows | D200: dms_060801_02_Rows | E200: dms_060801_03_Rows | F200: dms_060801_04_Rows
C201: Number of interruptions | D201: Duration of interruptions | E201: Total unplanned minutes off supply | F201: Effect on unplanned MAIFI
B204: Table 7.9.4 - market impact component - row descriptions | C204: dms_070904_01_Rows | D204: without exclusions | E204: with exclusions
B207: These headings (Lists) are determined from the INDEX/MATCH function on the NSP selected on the Business & other details sheet
B209: Table 6.7.1 - daily performance data - unplanned - MAIFI -- row descriptions and header named range values | C209: dms_060701_Feeder_Header_Lvl4 | D209: =INDEX(dms_FeederName_1,MATCH(dms_TradingName,dms_TradingName_List)) -> CBD | E209: =INDEX(dms_FeederName_1,MATCH(dms_TradingName,dms_TradingName_List)) -> CBD | F209: =INDEX(dms_FeederName_2,MATCH(dms_TradingName,dms_TradingName_List)) -> Urban | G209: =INDEX(dms_FeederName_2,MATCH(dms_TradingName,dms_TradingName_List)) -> Urban | H209: =INDEX(dms_FeederName_3,MATCH(dms_TradingName,dms_TradingName_List)) -> Short rural | I209: =INDEX(dms_FeederName_3,MATCH(dms_TradingName,dms_TradingName_List)) -> Short rural | J209: =INDEX(dms_FeederName_4,MATCH(dms_TradingName,dms_TradingName_List)) -> Long rural | K209: =INDEX(dms_FeederName_4,MATCH(dms_TradingName,dms_TradingName_List)) -> Long rural | L209: =IF((INDEX(dms_FeederName_5,MATCH(dms_TradingName,dms_TradingName_List))=0),"Network",(INDEX(dms_FeederName_5,MATCH(dms_TradingName,dms_TradingName_List)))) -> Network | M209: =IF((INDEX(dms_FeederName_5,MATCH(dms_TradingName,dms_TradingName_List))=0),"Network",(INDEX(dms_FeederName_5,MATCH(dms_TradingName,dms_TradingName_List)))) -> Network | N209: Network | O209: Network
C211: dms_060701_Rows | D211: All events | E211: After removing excluded events | F211: All events | G211: After removing excluded events | H211: All events | I211: After removing excluded events | J211: All events | K211: After removing excluded events | L211: All events | M211: After removing excluded events | N211: All events | O211: After removing excluded events
D212: the number of column headings changes from 10 to 12 depending on the number of feeder categories for the NSP
C214: dms_0603_FeederList | D214: =INDEX(dms_FeederName_1,MATCH(dms_TradingName,dms_TradingName_List)) -> CBD | E214: =INDEX(dms_FeederName_2,MATCH(dms_TradingName,dms_TradingName_List)) -> Urban | F214: =INDEX(dms_FeederName_3,MATCH(dms_TradingName,dms_TradingName_List)) -> Short rural | G214: =INDEX(dms_FeederName_4,MATCH(dms_TradingName,dms_TradingName_List)) -> Long rural
B217: Use these to add to specific worksheets in existing files | C217: Use these to add to specific worksheets in existing files
B220: ARRs 6.7 STPIS daily performance | C220: dms_060101_Values | D220: dms_060102_Values | E220: dms_060701_Values
C221: dms_LeapYear
B224: ARR's 6.8 STPIS exclusions | C224: dms_060801_Event_Date | D224: dms_060801_OutageID | E224: dms_060801_FeederID | F224: dms_060801_FeederClass | G224: dms_060801_CauseID | H224: dms_060801_01_Values | I224: dms_060801_02_Values | J224: dms_060801_03_Values | K224: dms_060801_Excl_Cat | L224: dms_060801_04_Values
C225: dms_060801_StartCell
B228: CA 6.3 sustained interruptions | C228: dms_060301_Event_Date | D228: dms_060301_Event_Time | E228: dms_060301_AssetID | F228: dms_060301_FeederClass | G228: dms_060301_Reason | H228: dms_060301_DetailedReason | I228: dms_060301_CustNo_Affected_Values | J228: dms_060301_Avg_Duration_Sustained_Int_Values | K228: dms_060301_Effect_unplanned_SAIDI_Values | L228: dms_060301_Effect_unplanned_SAIFI_Values | M228: dms_060301_MED
B232: PTRM input sheet | C232: DMS_50_01_01a | D232: DMS_50_01_01aa | E232: DMS_50_01_01b | F232: DMS_50_01_01bb | G232: DMS_50_01_01c | H232: DMS_50_01_01d | I232: DMS_50_01_01dd

Sheet AER lookups (hidden)
B1: AER LOOKUP TABLES
B3: Data in these columns used for data validation and database purposes.
B4: Date last modified: | C4: 2017-01-16 | D4: added (Albury and Victora) for AGN
C5: 2016-10-17 | D5: updated TransGrid's correct legal name, corrected TasNetworks (T) to June financial year
C6: 2017-02-01 | D6: inserted Power and Water, added NRs (dms_FeederCat_1 and dms_FeederCat_2)
C7: 2017-03-03 | D7: inserted AEMO as a business
C8: 2018-03-28 | D8: major changes to accommodate STPIS
C9: Template Version | D9: 5
Z11: FOR ELECTRICITY BUSINESSES ONLY
Z12: Feeder Types | AD12: TasNetworks (D) | AE12: Feeder Names
Z14: CBD | AA14: Urban | AB14: Short rural | AC14: long rural | AD14: EXTRA
B15: dms_TradingName_List | C15: dms_TradingNameFull_List | D15: dms_ABN_List | E15: dms_JurisdictionList | F15: dms_Sector_List | G15: dms_Segment_List | H15: dms_FormControl_List | I15: dms_RPT_List | J15: dms_RPTMonth_List | K15: dms_CRCPlength_List | L15: dms_FRCPlength_List | M15: dms_PRCPlength_List | N15: dms_663_List | O15: dms_DeterminationRef_List | P15: dms_Addr1_List | Q15: dms_Addr2_List | R15: dms_Suburb_List | S15: dms_State_List | T15: dms_PostCode_List | U15: dms_PAddr1_List | V15: dms_PAddr2_List | W15: dms_PSuburb_List | X15: dms_PState_List | Y15: dms_PPostCode_List | Z15: dms_CBD_flag | AA15: dms_Urban_flag | AB15: dms_ShortRural_flag | AC15: dms_LongRural_flag | AD15: dms_FeederType_5_flag | AE15: dms_FeederName_1 | AF15: dms_FeederName_2 | AG15: dms_FeederName_3 | AH15: dms_FeederName_4 | AI15: dms_FeederName_5 | AJ15: dms_Public_Lighting_List | AK15: Name
B16: AGN (Albury and Victoria) | C16: Australian Gas Networks Limited (reporting data for Albury and Victoria) | D16: 19078551685 | E16: Vic | F16: Gas | G16: Distribution | H16: Tariff cap | I16: Financial | J16: June | K16: 5 | L16: 5 | M16: 5 | N16: x | P16: Level 6 | Q16: 400 King William Street | R16: ADELAIDE | S16: SA | T16: 5000 | U16: PO Box 6468 | V16: Halifax Street | W16: ADELAIDE | X16: SA | Y16: 5000 | Z16: NO | AA16: NO | AB16: NO | AC16: NO | AD16: NO | AE16: CBD | AF16: Urban | AG16: Short rural | AH16: Long rural | AJ16: NO | AK16: =B16 -> AGN (Albury and Victoria)
B17: AGN (Albury) | C17: Australian Gas Networks Limited (reporting data for Albury) | D17: 19078551685 | E17: Vic | F17: Gas | G17: Distribution | H17: Tariff cap | I17: Financial | J17: June | K17: 5 | L17: 5 | M17: 5 | N17: x | P17: Level 6 | Q17: 400 King William Street | R17: ADELAIDE | S17: SA | T17: 5000 | U17: PO Box 6468 | V17: Halifax Street | W17: ADELAIDE | X17: SA | Y17: 5000 | Z17: NO | AA17: NO | AB17: NO | AC17: NO | AD17: NO | AE17: CBD | AF17: Urban | AG17: Short rural | AH17: Long rural | AJ17: NO | AK17: AGN (Albury)
B18: AGN (SA) | C18: Australian Gas Networks Limited (reporting data for SA) | D18: 19078551685 | E18: SA | F18: Gas | G18: Distribution | H18: Tariff cap | I18: Financial | J18: June | K18: 5 | L18: 5 | M18: 5 | N18: 5 | O18: distribution determination | P18: Level 6 | Q18: 400 King William Street | R18: ADELAIDE | S18: SA | T18: 5000 | U18: PO Box 6468 | V18: Halifax Street | W18: ADELAIDE | X18: SA | Y18: 5000 | Z18: NO | AA18: NO | AB18: NO | AC18: NO | AD18: NO | AE18: CBD | AF18: Urban | AG18: Short rural | AH18: Long rural | AJ18: NO | AK18: AGN (SA)
B19: AGN (Victoria) | C19: Australian Gas Networks Limited (reporting data for Victoria) | D19: 19078551685 | E19: Vic | F19: Gas | G19: Distribution | H19: Tariff cap | I19: Financial | J19: June | K19: 5 | L19: 5 | M19: 5 | N19: x | P19: Level 6 | Q19: 400 King William Street | R19: ADELAIDE | S19: SA | T19: 5000 | U19: PO Box 6468 | V19: Halifax Street | W19: ADELAIDE | X19: SA | Y19: 5000 | Z19: NO | AA19: NO | AB19: NO | AC19: NO | AD19: NO | AE19: CBD | AF19: Urban | AG19: Short rural | AH19: Long rural | AJ19: NO | AK19: AGN (Victoria)
B20: Amadeus | C20: APT Pipelines (NT) Pty Ltd | D20: 39009737393 | E20: NT | F20: Gas | G20: Transmission | H20: Tariff cap | I20: Financial | J20: June | K20: 5 | L20: 5 | M20: 5 | N20: x | O20: n/a | P20: Level 19, HSBC Building | Q20: 580 George Street | R20: SYDNEY | S20: NSW | T20: 2000 | U20: Level 19, HSBC Building | V20: 580 George Street | W20: SYDNEY | X20: NSW | Y20: 2000 | Z20: NO | AA20: NO | AB20: NO | AC20: NO | AD20: NO | AE20: CBD | AF20: Urban | AG20: Short rural | AH20: Long rural | AJ20: NO | AK20: Amadeus
B21: APA GasNet | C21: APA GasNet Australia (Operations) Pty Ltd | D21: 065083009 | E21: Vic | F21: Gas | G21: Transmission | H21: Weighted average price cap | I21: Financial | J21: June | K21: 5 | L21: 5 | M21: 5 | N21: x | P21: Level 19, HSBC Building | Q21: 580 George Street | R21: SYDNEY | S21: NSW | T21: 2000 | U21: PO Box R41 | W21: ROYAL EXCHANGE | X21: NSW | Y21: 1225 | Z21: Alexandra Curran | AA21: 02 9275 0020 | AB21: alexandra.curran@apa.com.au | AC21: NO | AD21: NO | AE21: NO | AF21: NO | AG21: NO | AH21: - | AI21: CBD | AJ21: Urban | AK21: APA GasNet
B22: APA VTS | C22: APA VTS Australia (Operations) Pty Ltd | D22: 65083009 | E22: Vic | F22: Gas | G22: Transmission | H22: Tariff cap | I22: Financial | J22: June | K22: 5 | L22: 5 | M22: 5 | N22: x | P22: Level 19, HSBC Building | Q22: 580 George Street | R22: SYDNEY | S22: NSW | T22: 2000 | U22: PO Box R41 | W22: ROYAL EXCHANGE | X22: NSW | Y22: 1225 | Z22: NO | AA22: NO | AB22: NO | AC22: NO | AD22: NO | AE22: CBD | AF22: Urban | AG22: Short rural | AH22: Long rural | AJ22: NO | AK22: APA VTS
B23: AusNet (Gas) | C23: AusNet Gas Services | D23: 086015036 | E23: Vic | F23: Gas | G23: Distribution | H23: Tariff cap | I23: Financial | J23: June | K23: 5 | L23: 5 | M23: 5 | N23: - | O23: - | P23: Level 31 | Q23: 2 Southbank Boulevard | R23: SOUTHBANK | S23: Vic | T23: 3008 | X23: Vic | Z23: NO | AA23: NO | AB23: NO | AC23: NO | AD23: NO | AE23: CBD | AF23: Urban | AG23: Short rural | AH23: Long rural | AJ23: NO | AK23: AusNet (Gas)
B24: Australian Distribution Co. (Gas) | C24: Australian Gas Distribution Co. | D24: 11222333444 | E24: Vic | F24: Gas | G24: Distribution | H24: Tariff cap | I24: Financial | J24: June | K24: 5 | L24: 5 | M24: 5 | N24: - | O24: - | P24: 123 Straight Street | R24: MELBOURNE | S24: Vic | T24: 3000 | U24: PO Box 123 | W24: MELBOURNE | X24: Vic | Y24: 3000 | Z24: NO | AA24: NO | AB24: NO | AC24: NO | AD24: NO | AE24: CBD | AF24: Urban | AG24: Short rural | AH24: Long rural | AJ24: NO | AK24: Australian Distribution Co. (Gas)
B25: Australian Transmission Co. (Gas) | C25: Australian Transmission Co. (Gas) | D25: 11222333444 | E25: NSW | F25: Gas | G25: Transmission | H25: Tariff cap | I25: Financial | J25: June | K25: 5 | L25: 5 | M25: 5 | N25: 5 | O25: transmission determination | P25: 123 Straight Street | R25: SYDNEY | S25: NSW | T25: 2000 | U25: PO Box 123 | W25: SYDNEY | X25: NSW | Y25: 2000 | Z25: NO | AA25: NO | AB25: NO | AC25: NO | AD25: NO | AE25: CBD | AF25: Urban | AG25: Short rural | AH25: Long rural | AJ25: NO | AK25: Australian Transmission Co. (Gas)
B26: Evoenergy Gas | C26: Icon Distribution Investments Limited (ABN 83 073 025 224) and Jemena Networks (ACT) Pty Ltd (ABN 24 008 552 663) | D26: 76670568688 | E26: ACT | F26: Gas | G26: Distribution | H26: Tariff cap | I26: Financial | J26: June | K26: 5 | L26: 5 | M26: 5 | N26: x | P26: 40 Bunda Street | R26: CANBERRA | S26: ACT | T26: 2600 | U26: GPO BOX 366 | W26: CANBERRA | X26: ACT | Y26: 2601 | Z26: NO | AA26: NO | AB26: NO | AC26: NO | AD26: NO | AE26: CBD | AF26: Urban | AG26: Short rural | AH26: Long rural | AJ26: NO | AK26: Evoenergy Gas
B27: JGN | C27: Jemena Gas Networks (NSW) Ltd | D27: 003 004 322 | E27: NSW | F27: Gas | G27: Distribution | H27: Tariff cap | I27: Financial | J27: June | K27: 5 | L27: 5 | M27: 5 | Z27: NO | AA27: NO | AB27: NO | AC27: NO | AD27: NO | AE27: CBD | AF27: Urban | AG27: Short rural | AH27: Long rural | AJ27: NO | AK27: JGN
B28: Multinet Gas | C28: Multinet Gas (DB No.1) Pty Ltd (ACN 086 026 986), Multinet Gas (DB No.2) Pty Ltd (ACN 086 230 122) | D28: 086026986 | E28: Vic | F28: Gas | G28: Distribution | H28: Tariff cap | I28: Financial | J28: June | K28: 5 | L28: 5 | M28: 5 | N28: x | P28: 43-45 Centreway | R28: MT WAVERLEY | S28: Vic | T28: 3149 | X28: Vic | Z28: NO | AA28: NO | AB28: NO | AC28: NO | AD28: NO | AE28: CBD | AF28: Urban | AG28: Short rural | AH28: Long rural | AJ28: NO | AK28: Multinet Gas
B29: Roma to Brisbane Pipeline | C29: APT Petroleum Pipelines Limited t/a Roma to Brisbane Pipeline | D29: 009 737 393 | E29: Qld | F29: Gas | G29: Transmission | H29: Tariff cap | I29: Financial | J29: June | K29: 5 | L29: 5 | M29: 5 | N29: x | O29: n/a | P29: 580 George Street | R29: SYDNEY | S29: NSW | T29: 2000 | U29: PO Box R41 | W29: ROYAL EXCHANGE | X29: NSW | Y29: 1225 | Z29: NO | AA29: NO | AB29: NO | AC29: NO | AD29: NO | AE29: CBD | AF29: Urban | AG29: Short rural | AH29: Long rural | AJ29: NO | AK29: Roma to Brisbane Pipeline
B34: The Reg Year Ending (dms_RYE) must be set to the last year of the regulatory period. For forecast data is is usually (FRCP_y5) for actual it is a single year (CRY). For historical actual data the RYE will need to be set manually in the business details sheet by setting the dms_Multiyear_flag to 1 and putting the correct value in 'dms_Specified_FinalYear. See cells C67:C68
B35: dms_Model_List | C35: dms_Model_Name_Format1 | D35: dms_Worksheet_List | E35: dms_Model_Span_List
B36: ARR | C36: Annual Reporting | D36: =IF(dms_MultiYear_ResponseFlag="yes","NEW HISTORICAL ANNUAL REPORTING","ANNUAL REPORTING") -> ANNUAL REPORTING | E36: 1
B37: CA | C37: Category Analysis | D37: =IF(dms_MultiYear_ResponseFlag="yes","NEW HISTORICAL CATEGORY ANALYSIS","CATEGORY ANALYSIS") -> CATEGORY ANALYSIS | E37: 1
B38: CESS | C38: Capitlal Expenditure | D38: CAPITLAL EXPENDITURE SHARING SCHEMING | E38: 5
B39: CPI | C39: CPI | D39: CPI | E39: 5
B40: EB | C40: Economic Benchmarking | D40: =IF(dms_MultiYear_ResponseFlag="yes","NEW HISTORICAL ECONOMIC BENCHMARKING","ECONOMIC BENCHMARKING") -> ECONOMIC BENCHMARKING | E40: 1
B41: EBSS | C41: Efficiency Benefit Sharing Scheme | D41: EFFICIENCY BENEFIT SHARING SCHEME | E41: 5
B42: Pricing | C42: Pricing Proposal | D42: PRICING PROPOSAL | E42: 5
B43: Profitability | C43: Profitability | D43: PROFITABILITY | E43: 5
B44: PTRM | C44: Post Tax Revenue Model | D44: POST TAX REVENUE MODEL | E44: 5
B45: Reset | C45: Regulatory Reporting (Reset) | D45: REGULATORY REPORTING STATEMENT | E45: 5
B46: RFM | C46: Roll Forward Model | D46: ROLL FORWARD MODEL | E46: 5
B47: WACC | C47: Weighted Average Cost of Capital | D47: WEIGHTED AVERAGE COST OF CAPITAL | E47: 1
B51: Financial | C51: Calendar | E51: PREVIOUS | G51: CURRENT | I51: FORTHCOMING
B52: 1987-88 | C52: 1988 | D52: PRCP_y1 | E52: =INDEX(INDIRECT(dms_RPT),dms_PRCP_start_row) -> 2013-14 | F52: CRCP_y1 | G52: =INDEX(INDIRECT(dms_RPT),dms_CRCP_start_row) -> 2018-19 | H52: =FRCP_y1 -> 2023-24 | I52: =INDEX(INDIRECT(dms_RPT),dms_FRCP_start_row) -> 2023-24
B53: 1988-89 | C53: 1989 | D53: PRCP_y2 | E53: =INDEX(INDIRECT(dms_RPT),dms_PRCP_start_row+1) -> 2014-15 | F53: CRCP_y2 | G53: =INDEX(INDIRECT(dms_RPT),dms_CRCP_start_row+1) -> 2019-20 | H53: FRCP_y2 | I53: =INDEX(INDIRECT(dms_RPT),dms_FRCP_start_row+1) -> 2024-25
B54: 1989-90 | C54: 1990 | D54: PRCP_y3 | E54: =INDEX(INDIRECT(dms_RPT),dms_PRCP_start_row+2) -> 2015-16 | F54: CRCP_y3 | G54: =INDEX(INDIRECT(dms_RPT),dms_CRCP_start_row+2) -> 2020-21 | H54: FRCP_y3 | I54: =INDEX(INDIRECT(dms_RPT),dms_FRCP_start_row+2) -> 2025-26
B55: 1990-91 | C55: 1991 | D55: PRCP_y4 | E55: =INDEX(INDIRECT(dms_RPT),dms_PRCP_start_row+3) -> 2016-17 | F55: CRCP_y4 | G55: =INDEX(INDIRECT(dms_RPT),dms_CRCP_start_row+3) -> 2021-22 | H55: FRCP_y4 | I55: =INDEX(INDIRECT(dms_RPT),dms_FRCP_start_row+3) -> 2026-27
B56: 1991-92 | C56: 1992 | D56: PRCP_y5 | E56: =INDEX(INDIRECT(dms_RPT),dms_PRCP_start_row+4) -> 2017-18 | F56: CRCP_y5 | G56: =INDEX(INDIRECT(dms_RPT),dms_CRCP_start_row+4) -> 2022-23 | H56: FRCP_y5 | I56: =INDEX(INDIRECT(dms_RPT),dms_FRCP_start_row+4) -> 2027-28
B57: 1992-93 | C57: 1993 | D57: PRCP_y6 | E57: =INDEX(INDIRECT(dms_RPT),dms_PRCP_start_row+5) -> 2018-19 | F57: CRCP_y6 | G57: =INDEX(INDIRECT(dms_RPT),dms_CRCP_start_row+5) -> 2023-24 | H57: FRCP_y6 | I57: =INDEX(INDIRECT(dms_RPT),dms_FRCP_start_row+5) -> 2028-29
B58: 1993-94 | C58: 1994 | D58: PRCP_y7 | E58: =INDEX(INDIRECT(dms_RPT),dms_PRCP_start_row+6) -> 2019-20 | F58: CRCP_y7 | G58: =INDEX(INDIRECT(dms_RPT),dms_CRCP_start_row+6) -> 2024-25 | H58: FRCP_y7 | I58: =INDEX(INDIRECT(dms_RPT),dms_FRCP_start_row+6) -> 2029-30
B59: 1994-95 | C59: 1995 | D59: PRCP_y8 | E59: =INDEX(INDIRECT(dms_RPT),dms_PRCP_start_row+7) -> 2020-21 | F59: CRCP_y8 | G59: =INDEX(INDIRECT(dms_RPT),dms_CRCP_start_row+7) -> 2025-26 | H59: FRCP_y8 | I59: =INDEX(INDIRECT(dms_RPT),dms_FRCP_start_row+7) -> 2030-31
B60: 1995-96 | C60: 1996 | D60: PRCP_y9 | E60: =INDEX(INDIRECT(dms_RPT),dms_PRCP_start_row+8) -> 2021-22 | F60: CRCP_y9 | G60: =INDEX(INDIRECT(dms_RPT),dms_CRCP_start_row+8) -> 2026-27 | H60: FRCP_y9 | I60: =INDEX(INDIRECT(dms_RPT),dms_FRCP_start_row+8) -> 2031-32
B61: 1996-97 | C61: 1997 | D61: PRCP_y10 | E61: =INDEX(INDIRECT(dms_RPT),dms_PRCP_start_row+9) -> 2022-23 | F61: CRCP_y10 | G61: =INDEX(INDIRECT(dms_RPT),dms_CRCP_start_row+9) -> 2027-28 | H61: FRCP_y10 | I61: =INDEX(INDIRECT(dms_RPT),dms_FRCP_start_row+9) -> 2032-33
B62: 1997-98 | C62: 1998 | D62: PRCP_y11 | E62: =INDEX(INDIRECT(dms_RPT),dms_PRCP_start_row+10) -> 2023-24 | F62: CRCP_y11 | G62: =INDEX(INDIRECT(dms_RPT),dms_CRCP_start_row+10) -> 2028-29 | H62: FRCP_y11 | I62: =INDEX(INDIRECT(dms_RPT),dms_FRCP_start_row+10) -> 2033-34
B63: 1998-99 | C63: 1999 | D63: PRCP_y12 | E63: =INDEX(INDIRECT(dms_RPT),dms_PRCP_start_row+11) -> 2024-25 | F63: CRCP_y12 | G63: =INDEX(INDIRECT(dms_RPT),dms_CRCP_start_row+11) -> 2029-30 | H63: FRCP_y12 | I63: =INDEX(INDIRECT(dms_RPT),dms_FRCP_start_row+11) -> 2034-35
B64: 1999-00 | C64: 2000 | D64: PRCP_y13 | E64: =INDEX(INDIRECT(dms_RPT),dms_PRCP_start_row+12) -> 2025-26 | F64: CRCP_y13 | G64: =INDEX(INDIRECT(dms_RPT),dms_CRCP_start_row+12) -> 2030-31 | H64: FRCP_y13 | I64: =INDEX(INDIRECT(dms_RPT),dms_FRCP_start_row+12) -> 2035-36
B65: 2000-01 | C65: 2001 | D65: PRCP_y14 | E65: =INDEX(INDIRECT(dms_RPT),dms_PRCP_start_row+13) -> 2026-27 | F65: CRCP_y14 | G65: =INDEX(INDIRECT(dms_RPT),dms_CRCP_start_row+13) -> 2031-32 | H65: FRCP_y14 | I65: =INDEX(INDIRECT(dms_RPT),dms_FRCP_start_row+13) -> 2036-37
B66: 2001-02 | C66: 2002 | D66: PRCP_y15 | E66: =INDEX(INDIRECT(dms_RPT),dms_PRCP_start_row+14) -> 2027-28 | F66: CRCP_y15 | G66: =INDEX(INDIRECT(dms_RPT),dms_CRCP_start_row+14) -> 2032-33 | H66: FRCP_y15 | I66: =INDEX(INDIRECT(dms_RPT),dms_FRCP_start_row+14) -> 
B67: 2002-03 | C67: 2003 | D67: PRCP_y16 | E67: =INDEX(INDIRECT(dms_RPT),dms_PRCP_start_row+15) -> 2028-29 | F67: CRCP_y16 | G67: =INDEX(INDIRECT(dms_RPT),dms_CRCP_start_row+15) -> 2033-34 | H67: FRCP_y16 | I67: =INDEX(INDIRECT(dms_RPT),dms_FRCP_start_row+15) -> 
B68: 2003-04 | C68: 2004
B69: 2004-05 | C69: 2005
B70: 2005-06 | C70: 2006 | E70: CRY - FRY
B71: 2006-07 | C71: 2007 | D71: dms_y1 | E71: =IFERROR(INDEX(INDIRECT(dms_RPT),dms_CRY_start_row),0) -> 2021-22
B72: 2007-08 | C72: 2008 | D72: dms_y2 | E72: =IFERROR(INDEX(INDIRECT(dms_RPT),dms_CRY_start_row+1),0) -> 2022-23
B73: 2008-09 | C73: 2009 | D73: dms_y3 | E73: =IFERROR(INDEX(INDIRECT(dms_RPT),dms_CRY_start_row+2),0) -> 2023-24
B74: 2009-10 | C74: 2010 | D74: dms_y4 | E74: =IFERROR(INDEX(INDIRECT(dms_RPT),dms_CRY_start_row+3),0) -> 2024-25
B75: 2010-11 | C75: 2011 | D75: dms_y5 | E75: =IFERROR(INDEX(INDIRECT(dms_RPT),dms_CRY_start_row+4),0) -> 2025-26
B76: 2011-12 | C76: 2012 | D76: dms_y6 | E76: =IFERROR(INDEX(INDIRECT(dms_RPT),dms_CRY_start_row+5),0) -> 2026-27
B77: 2012-13 | C77: 2013 | D77: dms_y7 | E77: =IFERROR(INDEX(INDIRECT(dms_RPT),dms_CRY_start_row+6),0) -> 2027-28
B78: 2013-14 | C78: 2014 | D78: dms_y8 | E78: =IFERROR(INDEX(INDIRECT(dms_RPT),dms_CRY_start_row+7),0) -> 2028-29
B79: 2014-15 | C79: 2015 | D79: dms_y9 | E79: =IFERROR(INDEX(INDIRECT(dms_RPT),dms_CRY_start_row+8),0) -> 2029-30
B80: 2015-16 | C80: 2016 | D80: dms_y10 | E80: =IFERROR(INDEX(INDIRECT(dms_RPT),dms_CRY_start_row+9),0) -> 2030-31
B81: 2016-17 | C81: 2017 | D81: dms_y11 | E81: =IFERROR(INDEX(INDIRECT(dms_RPT),dms_CRY_start_row+10),0) -> 2031-32
B82: 2017-18 | C82: 2018 | D82: dms_y12 | E82: =IFERROR(INDEX(INDIRECT(dms_RPT),dms_CRY_start_row+11),0) -> 2032-33
B83: 2018-19 | C83: 2019 | D83: dms_y13 | E83: =IFERROR(INDEX(INDIRECT(dms_RPT),dms_CRY_start_row+12),0) -> 2033-34
B84: 2019-20 | C84: 2020 | D84: dms_y14 | E84: =IFERROR(INDEX(INDIRECT(dms_RPT),dms_CRY_start_row+13),0) -> 2034-35
B85: 2020-21 | C85: 2021 | D85: dms_y15 | E85: =IFERROR(INDEX(INDIRECT(dms_RPT),dms_CRY_start_row+14),0) -> 2035-36
B86: 2021-22 | C86: 2022 | D86: dms_y16 | E86: =IFERROR(INDEX(INDIRECT(dms_RPT),dms_CRY_start_row+15),0) -> 2036-37
B87: 2022-23 | C87: 2023
B88: 2023-24 | C88: 2024
B89: 2024-25 | C89: 2025
B90: 2025-26 | C90: 2026
B91: 2026-27 | C91: 2027
B92: 2027-28 | C92: 2028
B93: 2028-29 | C93: 2029
B94: 2029-30 | C94: 2030
B95: 2030-31 | C95: 2031
B96: 2031-32 | C96: 2032
B97: 2032-33 | C97: 2033
B98: 2033-34 | C98: 2034
B99: 2034-35 | C99: 2035
B100: 2035-36 | C100: 2036
B101: 2036-37 | C101: 2037

Sheet AER ETL (hidden)
B1: AER ETL INFORMATION
B3: USES NAMED RANGES FLAG | C3: yes | D3: dms_Defined_Names_Used
B5: IF THIS IS AN ABC RIN - make sure the the named range CRY is applied and the named range dms_dollar_nom_UOM is applied
B6: IF THIS IS A RESET RIN - make sure the named ranges CRY and dms_dollar_nom_UOM are NOT present in the workbook
B7: FOR ABC RINS THAT SPAN MULTIPLE YEARS - make sure MultiYear Flag is set and final year entered as required
B9: Full trading name | C9: =INDEX(dms_TradingNameFull_List,MATCH(dms_TradingName,dms_TradingName_List)) -> AusNet Gas Services | E9: dms_TradingNameFull
B10: Trading name | C10: =dms_TradingName -> AusNet (Gas)
A11: Selected here | B11: Model / RIN | C11: Reset | D11: dms_Model
A12: Read from Business & other details | B12: Source | C12: Regulatory proposal | D12: dms_Source
B13: Data quality | C13: Consolidated | D13: For DB purposes this is always Consoldiated
B14: Data status | C14: Public | D14: For DB purposes this is always Public
B15: Amendment reason | C15: =dms_Amendment_Text -> . | F15: dms_AmendmentReason
B16: Submission date | C16: =dms_Typed_Submission_Date -> 2022-07-01 | D16: dms_SubmissionDate
A18: Redundant | B18: EBSS - First application of scheme in forthcoming period? | C18: No
A19: Pre-populated from lookup table | B19: Data ingestion data quality | C19: Consolidated | D19: dms_DataQuality | E19: Always Consolidated
B20: Sector | C20: =INDEX(dms_Sector_List,MATCH(dms_TradingName,dms_TradingName_List)) -> Gas | D20: dms_Sector | E20: =INDEX(dms_Sector_List,MATCH(dms_TradingName,dms_TradingName_List))
B21: Segment | C21: =INDEX(dms_Segment_List,MATCH(dms_TradingName,dms_TradingName_List)) -> Distribution | D21: dms_Segment | E21: =INDEX(dms_Segment_List,MATCH(dms_TradingName,dms_TradingName_List))
B22: Regulatory Year Ending | C22: =IF(dms_MultiYear_Flag=1,LEFT(dms_Specified_FinalYear,2)&RIGHT(dms_Specified_FinalYear,2),dms_RYE_result) -> 2028 | D22: dms_RYE | E22: =IF(dms_MultiYear_Flag=1,LEFT(dms_Specified_FinalYear,2)&RIGHT(dms_Specified_FinalYear,2),dms_RYE_result)
B23: Reporting Period Type | C23: =INDEX(dms_RPT_List,MATCH(dms_TradingName,dms_TradingName_List)) -> Financial | D23: dms_RPT | E23: =INDEX(dms_RPT_List,MATCH(dms_TradingName,dms_TradingName_List))
B24: EB/CA Unit of Measure for Monetary Values | C24: $0s | D24: dms_dollar_nom_UOM | E24: If the cover sheet is attached to an ABC RIN apply the NAMED RANGE to the cell
B25: Security Classification | C25: Public | D25: dms_Classification | E25: Always Public
B26: Jurisdiction | C26: =INDEX(dms_JurisdictionList,MATCH(dms_TradingName,dms_TradingName_List)) -> Vic | D26: dms_Jurisdiction | E26: =INDEX(dms_JurisdictionList,MATCH(dms_TradingName,dms_TradingName_List))
A27: Relevant for PTRM, RFMs and Reset RINS | B27: $ REAL REFERENCES
B28: Does the named range CRY exist in this file? | C28: =IFERROR(CRY,"NO") -> NO
B29: CRY-1 (last full calendar year before CRY) | C29: =IFERROR(IF(dms_RPT="calendar",CRY-1,LEFT(CRY,4)),"CRY not present") -> CRY not present | D29: dms_Cal_Year_B4_CRY | E29: '=IF(dms_RPT="financial",VALUE(LEFT(dms_SingleYear_FinalYear_Result,4)),VALUE(LEFT(dms_SingleYear_FinalYear_Result,4)-1))
B30: Dollar $ real month | C30: =INDEX(dms_RPTMonth_List,MATCH(dms_TradingName,dms_TradingName_List)) -> June | D30: dms_RPTMonth | E30: =INDEX(dms_RPTMonth_List,MATCH(dms_TradingName,dms_TradingName_List))
B31: Dollar $ real (the last month before the FRCP_y1) | C31: =IF(dms_Model="RFM",dms_DollarReal_Prev, IF(dms_SingleYearModel="yes",CONCATENATE(dms_RPTMonth)&" "&VALUE((LEFT(dms_CRY_start_year,2)&RIGHT(dms_CRY_start_year,2))),CONCATENATE(dms_RPTMonth)&" "&dms_DollarReal_year)) -> June 2023 | D31: dms_DollarReal | E31: =IF(dms_Model="RFM",dms_DollarReal_Prev, IF(dms_SingleYearModel="yes",CONCATENATE(dms_RPTMonth)&" "&VALUE((LEFT(dms_CRY_start_year,2)&RIGHT(dms_CRY_start_year,2))),CONCATENATE(dms_RPTMonth)&" "&dms_DollarReal_year))
B32: Dollar $ real previous year (PRCP_y5) | C32: December 2017 | D32: dms_DollarReal_Prev | E32: =IF(SUM(dms_SingleYear_Model)>0,CONCATENATE(dms_RPTMonth)&" "&VALUE(((LEFT(CRY,2))&RIGHT(CRY,2))-1),CONCATENATE(dms_RPTMonth)&" "&VALUE(((LEFT(dms_CRCP_FirstYear_Result,2)&RIGHT(dms_CRCP_FirstYear_Result,2))))-1)
B33: PTRM/ RFMs
B34: Form of control | C34: =INDEX(dms_FormControl_List,MATCH(dms_TradingName,dms_TradingName_List)) -> Tariff cap | D34: dms_FormControl | E34: =INDEX(dms_FormControl_List,MATCH(dms_TradingName,dms_TradingName_List))
A35: All potential values for Regulatory Years or RYEs as calculated | B35: This block works out the various RYE's for ALL RIN types and MODELS
B36: dms_start_year | C36: =FRCP_y1 -> 2023-24 | D36: =FRCP_y1 | E36: FRCP_y1 from cover sheet
B37: dms_CRY_start_year | C37: =IFERROR(CRY,CRCP_y4) -> 2021-22 | D37: =IFERROR(CRY,CRCP_y4)
B38: dms_CRY_start_row | C38: =IFERROR(MATCH(dms_CRY_start_year,INDIRECT(dms_RPT),0),0) -> 35 | D38: =IFERROR(MATCH(dms_CRY_start_year,INDIRECT(dms_RPT),0),0)
B39: dms_FRCP_start_row | C39: =MATCH(dms_start_year,INDIRECT(dms_RPT),0) -> 37 | D39: =MATCH(dms_start_year,INDIRECT(dms_RPT),0) | E39: Uses FRCP_y1 as a start reference
B40: dms_CRCP_start_row | C40: =dms_FRCP_start_row-dms_CRCPlength_Num -> 32 | D40: =dms_FRCP_start_row-dms_CRCPlength_Num | E40: Uses the value in dms_CRCPlength_Num
B41: dms_PRCP_start_row | C41: =dms_FRCP_start_row-dms_CRCPlength_Num-dms_PRCPlength_Num -> 27 | D41: =dms_FRCP_start_row-dms_CRCPlength_Num-dms_PRCPlength_Num | E41: Uses the value in dms_CRCPlength_Num and dms_PRCPlength_Num
B42: dms_RYE_start_row | C42: =dms_FRCP_start_row+(dms_FRCPlength_Num-1) -> 41 | D42: =dms_FRCP_start_row+(dms_FRCPlength_Num-1) | E42: Uses the value in dms_FRCPlength_Num-1
B43: FRCP_start_year | C43: =INDEX(INDIRECT(dms_RPT),dms_FRCP_start_row) -> 2023-24 | D43: =INDEX(INDIRECT(dms_RPT),dms_FRCP_start_row) | E43: Converts the FRCP start row to display the year
B44: CRCP_start_year | C44: =INDEX(INDIRECT(dms_RPT),dms_CRCP_start_row) -> 2018-19 | D44: =INDEX(INDIRECT(dms_RPT),dms_CRCP_start_row) | E44: Converts the CRCP start row to display the year
B45: PRCP_start_year | C45: =INDEX(INDIRECT(dms_RPT),dms_PRCP_start_row) -> 2013-14 | D45: =INDEX(INDIRECT(dms_RPT),dms_PRCP_start_row) | E45: Converts the PRCP start row to display the year
B46: FRCP_final_year | C46: =INDEX(INDIRECT(dms_RPT),dms_FRCP_start_row+dms_FRCPlength_Num-1) -> 2027-28 | D46: =INDEX(INDIRECT(dms_RPT),dms_FRCP_start_row+dms_FRCPlength_Num-1) | E46: Finds the FRCP final year
B47: CRCP_final_year | C47: =INDEX(INDIRECT(dms_RPT),dms_CRCP_start_row+dms_CRCPlength_Num-1) -> 2022-23 | D47: =INDEX(INDIRECT(dms_RPT),dms_CRCP_start_row+dms_CRCPlength_Num-1) | E47: Finds the CRCP final year
B48: PRCP_final_year | C48: =INDEX(INDIRECT(dms_RPT),dms_PRCP_start_row+dms_FRCPlength_Num-1) -> 2017-18 | D48: =INDEX(INDIRECT(dms_RPT),dms_PRCP_start_row+dms_FRCPlength_Num-1) | E48: Finds the PRCP final year
B49: dms_Reset_final_year | C49: =INDEX(INDIRECT(dms_RPT),dms_RYE_start_row) -> 2027-28 | D49: =INDEX(INDIRECT(dms_RPT),dms_RYE_start_row) | E49: For Resets and PTRM/RFMs (same as FRCP_final_year)
B50: dms_SpecifiedYear_final_year | C50: =FRY -> 2027-28 | D50: =FRY | E50: FRY from cover sheet
B51: dms_DollarReal_year | C51: =LEFT(CRCP_final_year,2)&RIGHT(CRCP_final_year,2) -> 2023 | D51: =LEFT(CRCP_final_year,2)&RIGHT(CRCP_final_year,2) | E51: Uses the value in CRCP_final_year
B52: dms_Previous_DollarReal_year | C52: =LEFT(PRCP_final_year,2)&RIGHT(PRCP_final_year,2) -> 2018 | D52: =LEFT(PRCP_final_year,2)&RIGHT(PRCP_final_year,2) | E52: Uses the value in PRCP_final_year
B53: dms_CRY_RYE | C53: =IFERROR(LEFT(CRY,2)&RIGHT(CRY,2),0) -> 0 | D53: =IFERROR(LEFT(CRY,2)&RIGHT(CRY,2),0) | E53: For ABC single year RINS
B54: dms_Reset_RYE | C54: =IF(dms_Model_Span>1,IF(dms_Model="RFM",(LEFT(dms_DollarReal_year,2)&RIGHT(dms_DollarReal_year,2)),(LEFT(dms_Reset_final_year,2)&RIGHT(dms_Reset_final_year,2))),0) -> 2028 | D54: =IF(dms_Model_Span>1,IF(dms_Model="RFM",(LEFT(dms_DollarReal_year,2)&RIGHT(dms_DollarReal_year,2)),(LEFT(dms_Reset_final_year,2)&RIGHT(dms_Reset_final_year,2))),0) | E54: If model span > 1 then uses dms_Reset_RYE otherwise it's a multi year ABC and uses dms_Specified_RYE
B55: dms_Specified_RYE | C55: =IF(dms_MultiYear_ResponseFlag="Yes",(LEFT(dms_Specified_FinalYear,2)&RIGHT(dms_Specified_FinalYear,2)),0) -> 0 | D55: =IF(dms_MultiYear_ResponseFlag="Yes",(LEFT(dms_Specified_FinalYear,2)&RIGHT(dms_Specified_FinalYear,2)),0) | E55: If multi year ABC - uses dms_Specified_FinalYear
B56: dms_Model_Span | C56: =INDEX(dms_Model_Span_List,MATCH(dms_Model,dms_Model_List)) -> 5 | D56: =INDEX(dms_Model_Span_List,MATCH(dms_Model,dms_Model_List)) | E56: A result of 5 is used to signify that it is more than 1 year span
B57: dms_RYE_result | C57: =IF(dms_MultiYear_ResponseFlag="yes",dms_Specified_RYE,(IF(dms_Model_Span>1,dms_Reset_RYE,dms_CRY_RYE))) -> 2028 | D57: =IF(dms_MultiYear_ResponseFlag="yes",dms_Specified_RYE,(IF(dms_Model_Span>1,dms_Reset_RYE,dms_CRY_RYE))) | E57: Nested IF - feeds into dms_RYE
B58: dms_Reset_Span | C58: =IF(dms_Reset_RYE>0,CONCATENATE(FRCP_y1," to ",FRCP_final_year),0) -> 2023-24 to 2027-28 | D58: =IF(dms_Reset_RYE>0,CONCATENATE(FRCP_y1," to ",FRCP_final_year),0) | E58: Reset span of years as text
B59: dms_SpecifiedYear_Span | C59: =IF(dms_Specified_RYE>0,CONCATENATE(CRY," to ",dms_Specified_FinalYear),0) -> 0 | D59: =IF(dms_Specified_RYE>0,CONCATENATE(CRY," to ",dms_Specified_FinalYear),0) | E59: Multi year ABC span of years as text
B60: dms_Header_Span | C60: =IF(dms_MultiYear_Flag=1,dms_SpecifiedYear_Span,IF(dms_Model_Span>1,dms_y1&" to "&FRCP_final_year,CRY)) -> 2021-22 to 2027-28 | D60: =IF(dms_MultiYear_Flag=1,dms_SpecifiedYear_Span,IF(dms_Model_Span>1,dms_Reset_Span,CRY)) | E60: NESTED IF - for Sheet Headers
B61: ABC RINS THAT SPAN MULTIPLE YEARS
B62: This is a multi year ABC RIN? | C62: No
C63: =IF(dms_MultiYear_ResponseFlag="No",0,1) -> 0 | D63: dms_MultiYear_Flag | E63: This is set from the answer provided above
C64: =IF(dms_MultiYear_Flag=1,FRY,"not a Multiple year submission") -> not a Multiple year submission | D64: dms_Specified_FinalYear | E64: The result here is returned to dms_CRCP_FinalYear_Result if response to Q in C73 is "yes" and dms_MultiYear_Flag is set to 1
B65: Start year for 5.2 in Multi year ABC RINS | C65: =IFERROR(IF(dms_MultiYear_Flag=1,FRY,CRY),"not an ABC") -> not an ABC | D65: dms_0502_Inst_Year | E65: =IF(dms_MultiYear_Flag=1,FRY,CRY) | G65: For single year RINS this is CRY - multi year RINS need to start a the end of the span of years (ie. FRY)
B66: WHAT IS THE RYE?
B67: Reg Period Lengths
B68: PRCP length in years | C68: =INDEX(dms_PRCPlength_List,MATCH(dms_TradingName,dms_TradingName_List)) -> 5 | D68: dms_PRCPlength_Num | E68: =INDEX(dms_PRCPlength_List,MATCH(dms_TradingName,dms_TradingName_List))
B69: CRCP length in years | C69: =INDEX(dms_CRCPlength_List,MATCH(dms_TradingName,dms_TradingName_List)) -> 5 | D69: dms_CRCPlength_Num | E69: =INDEX(dms_CRCPlength_List,MATCH(dms_TradingName,dms_TradingName_List))
B70: FRCP length in years | C70: =INDEX(dms_FRCPlength_List,MATCH(dms_TradingName,dms_TradingName_List)) -> 5 | D70: dms_FRCPlength_Num | E70: =INDEX(dms_FRCPlength_List,MATCH(dms_TradingName,dms_TradingName_List))
B71: Single year RIN?
B72: Single Year ABC RIN ? | C72: =IF(dms_Model="EB",1,0) -> 0 | D72: dms_EB
C73: =IF(dms_Model="CA",1,0) -> 0 | D73: dms_CA | E73: =dms_SingleYear_Model
C74: =IF(dms_Model="ARR",1,0) -> 0 | D74: dms_ARR
B75: Is this a single Year ABC RIN? | C75: =IF(SUM(dms_SingleYear_Model)=1,"yes","no") -> no | D75: dms_SingleYearModel | E75: =IF(SUM(dms_SingleYear_Model)=1,"yes","no")
B76: Single Year Final Year Result | C76: =IF(AND(dms_SingleYearModel="yes",dms_MultiYear_Flag=0),CRY,0) -> 0 | D76: dms_SingleYear_FinalYear_Result | E76: =IFERROR(IF(SUM(dms_SingleYear_Model)<>0,(INDIRECT(dms_SingleYear_FinalYear_Ref)),"not a single year RIN"),"CRY not present")
B77: Multi year RIN?
B79: Multi Year Reset/Model? | C79: =IF(dms_Model_Span>1,"yes","no") -> yes
B80: Final year result for Reset/Model | C80: =IF(dms_Model_Span>1,dms_Reset_final_year,0) -> 2027-28 | D80: dms_MultiYear_FinalYear_Result | E80: dms_CRCP_FinalYear_Result
B82: Multi Year ABC RIN? | C82: =IF(dms_MultiYear_Flag=1,"yes","no") -> no | D82: dms_MultiYear_ABC_RIN
B83: Final year result for ABC multi year | C83: =IF(dms_MultiYear_Flag=1,C50,0) -> 0
B85: EB RINS
B86: Calendar Year for table 3.6 data | C86: =IFERROR(IF(dms_Segment="Transmission",dms_Cal_Year_B4_CRY,CRY),"CRY not present") -> CRY not present | D86: dms_0306_Year | E86: =IF(dms_Segment="Transmission",dms_Cal_Year_B4_CRY,CRY)
B87: CA RINS
B88: Find how many rows in tables 6.3 sustained interruptions? | E88: dms_060301_MaxRows only returns a valid value when cover sheet is attached to a CA file
C89: =IF(dms_Model<>"CA","not a CA","Is a CA") -> not a CA | E89: =IF(dms_Model<>"CA","not a CA","Is a CA")
B90: dms_060301_Avg_Duration_Sustained_Int_Values present? | C90: =IFERROR(IF(INDEX(dms_060301_Avg_Duration_Sustained_Int_Values,1,1)<>"","yes","no"),"no") -> no | D90: dms_060301_checkvalue | E90: =IFERROR(IF(INDEX(dms_060301_Avg_Duration_Sustained_Int_Values,1,1)<>"","yes","no"),"no")
C91: =IF(AND(dms_Model="CA",(dms_060301_checkvalue="no")),"error - NR not present","no errors") -> no errors | E91: =IF(AND(dms_Model="CA",(dms_060301_checkvalue="no")),"error - NR not present","no errors")
B92: Table 6.3.1 - last row reference | C92: =IFERROR(IF(dms_Model="CA",LOOKUP(2,1/(dms_060301_Avg_Duration_Sustained_Int_Values<>""),(ROW(dms_060301_Avg_Duration_Sustained_Int_Values))),"not a CA"),"6.3 not present") -> not a CA | D92: dms_060301_LastRow | E92: =IFERROR(IF(dms_Model="CA",LOOKUP(2,1/(dms_060301_Avg_Duration_Sustained_Int_Values<>""),(ROW(dms_060301_Avg_Duration_Sustained_Int_Values))),"not a CA"),"6.3 not present")
B93: Table 6.3.1 - max number rows | C93: =IFERROR(IF(dms_Model="CA",(dms_060301_LastRow-15),"not a CA"),"error") -> not a CA | D93: dms_060301_MaxRows | E93: =IFERROR(IF(dms_Model="CA",(dms_060301_LastRow-15),"not a CA"),"error")
B94: Table 6.6.3 - Public lighting repair - no. business days | C94: =INDEX(dms_663_List,MATCH(dms_TradingName,dms_TradingName_List)) -> - | D94: dms_663 | E94: =INDEX(dms_663_List,MATCH(dms_TradingName,dms_TradingName_List))
B95: ARR or RESET RINS
B96: How many rows in tables 6.1 or 6.7? (leap year?) | C96: insert dms_LeapYear NR if required | E96: 'dms_LeapYear is used to determine dms_060701_Max_Rows BUT it is only found on worksheet 6.1 or 6.7 and the date value in the cell is used to determine whether it is a leap year
B97: Is dms_LeapYear named range present? | C97: =IFERROR(IF(dms_LeapYear,"yes"),"no") -> no
B98: Table 6.7.1 - includes a leap year? | C98: =IFERROR(IF(MONTH(DATE(YEAR(dms_LeapYear),2,29))=2,"is a leap year","not a leap year"), "dms_LeapYear not present") -> dms_LeapYear not present | D98: dms_LeapYear_Result | E98: =IFERROR(IF(MONTH(DATE(YEAR(dms_LeapYear),2,29))=2,"is a leap year","not a leap year"),"dms_LeapYear not present")
B99: MaxRows if Reset and leap year | C99: =IF(dms_LeapYear_Result="is a leap year",1827,1826) -> 1826 | D99: dms_060701_Reset_MaxRows | E99: =IF(dms_LeapYear_Result="is a leap year",1827,1826) | H99: number of days present in Reset RIN table
B100: MaxRows if ARR and leap year | C100: =IF(dms_LeapYear_Result="is a leap year",366,365) -> 365 | D100: dms_060701_ARR_MaxRows | E100: =IF(dms_LeapYear_Result="is a leap year",366,365) | H100: number of days present in ARR RIN table
B101: Table 6.7.1 - Max Rows (leap year/ non leap year) | C101: =IF(dms_Model="ARR",dms_060701_ARR_MaxRows,IF(dms_Model="Reset",dms_060701_Reset_MaxRows,"not a relevant RIN type")) -> 1826 | D101: dms_060701_MaxRows | E101: =IF(dms_Model="ARR",dms_060701_ARR_MaxRows,IF(dms_Model="Reset",dms_060701_Reset_MaxRows,"not a relevant RIN type"))
B102: How many columns in 6.7? (4 or 5 feeder categories) | C102: =IF(dms_FifthFeeder_flag_NSP="NO","This NSP has only 4 feeder categories","This NSP has 5 feeder categories") -> This NSP has only 4 feeder categories
B103: Table 6.7.1 - Last column (# of feeder categories > 4) | C103: =IF(dms_FifthFeeder_flag_NSP="NO",10,12) -> 10 | D103: dms_060701_MaxCols | E103: =IF(dms_FifthFeeder_flag_NSP="NO",8,10)
B104: Table 6.7.1 - Number of offset rows | C104: =IF(dms_Model="ARR",15,9) -> 9 | D104: dms_060701_OffsetRows | E104: =IF(dms_Model="ARR",15,9)
B105: Start date for telephone answering in 6.1 or 6.7? | E105: Using 060101 as naming standard not 060701 for start dates
B106: Table 6.1.1 and 6.7.1 - Start Date as Text | C106: =IF(dms_SingleYearModel="yes",(CONCATENATE(IF(LEN(CRY)=4,"1-Jan-","1-Jul-"),LEFT(CRY,4))),(CONCATENATE(IF(LEN(PRCP_y4)=4,"1-Jan-","1-Jul-"),LEFT(PRCP_y4,4)))) -> 1-Jul-2016 | D106: dms_060101_StartDateTxt | E106: =IF(SUM(dms_SingleYear_Model)>1,(CONCATENATE(IF(LEN(CRY)=4,"1-Jan-","1-Jul-"),LEFT(CRY,4))),(CONCATENATE(IF(LEN(CRCP_y4)=4,"1-Jan-","1-Jul-"),LEFT(CRCP_y4,4))))
B107: Table 6.1.1 and 6.7.1 - Start Date as Date Value | C107: =DATEVALUE(dms_060701_StartDateTxt) -> 42552 | D107: dms_060101_StartDateVal | E107: =DATEVALUE(dms_060701_StartDateTxt)
B108: ARRs
B109: How many rows in table 6.8? | C109: insert dms_060801_StartCell NR if required | E109: dms_060801_StartCell is only found on worksheet 6.8 and is used to determine the starting date for the date range
B110: Is dms_060801_StartCell named range present? | C110: =IFERROR(IF((ROW(dms_060801_StartCell)-1)=1,"yes","yes"),"no") -> no | D110: Must be present for ARRs | E110: =IFERROR(IF((ROW(dms_060801_StartCell)-1)=1,"yes","yes"),"no")
B111: Table 6.8 - Number of offset rows | C111: 12 | D111: dms_0608_OffsetRows | E111: =IFERROR(IF(dms_Model="ARR",(ROW(dms_060801_StartCell)-1),"not an ARR"),"6.8 error")
B112: Table 6.8 - Last row | C112: =IFERROR(IF(dms_060801_StartCell<>"",IF(dms_Model="ARR",(LOOKUP(2,1/(dms_060801_01_Values<>""),(ROW(dms_060801_01_Values)))),"not an ARR"),0),"0") -> 0 | D112: dms_0608_LastRow | E112: =IFERROR(IF(dms_060801_StartCell<>"",IF(dms_Model="ARR",(LOOKUP(2,1/(dms_060801_01_Values<>""),(ROW(dms_060801_01_Values)))),"not an ARR"),0),"0")
B113: Table 6.8 - MaxRows | C113: =IFERROR(IF(dms_Model="ARR",(MAX(0,dms_0608_LastRow-dms_0608_OffsetRows)),"not an ARR"),"0") -> not an ARR | D113: dms_060801_MaxRows | E113: =IFERROR(IF(dms_Model="ARR",(MAX(0,dms_0608_LastRow-dms_0608_OffsetRows)),"not an ARR"),"0")
B114: TNSP RESET RINS
B115: Table 7.9.4 only appears in TNSPs Reset RIN
B116: Table 7.9.4 - first year | C116: =LEFT(PRCP_y3,4) -> 2015 | D116: dms_070904_Start_Year | E116: =LEFT(PRCP_y3,4)
B118: MISC
B119: Distribution Determination Reference | C119: =INDEX(dms_DeterminationRef_List,MATCH(dms_TradingName,dms_TradingName_List)) -> - | D119: dms_DeterminationRef
B120: Public lighting NSP? | C120: =INDEX(dms_Public_Lighting_List,MATCH(dms_TradingName,dms_TradingName_List)) -> NO | D120: dms_Public_Lighting | E120: =INDEX(dms_Public_Lighting_List,MATCH(dms_TradingName,dms_TradingName_List))
B121: CBD Feeder for this business | C121: =INDEX(dms_CBD_flag,MATCH(dms_TradingName,dms_TradingName_List)) -> NO | D121: dms_CBD_flag_NSP
B122: Urban Feeder for this business | C122: =INDEX(dms_Urban_flag,MATCH(dms_TradingName,dms_TradingName_List)) -> NO | D122: dms_Urban_flag_NSP
B123: Short rural Feeder for this business | C123: =INDEX(dms_ShortRural_flag,MATCH(dms_TradingName,dms_TradingName_List)) -> NO | D123: dms_ShortRural_flag_NSP
B124: Long rural Feeder for this business | C124: =INDEX(dms_LongRural_flag,MATCH(dms_TradingName,dms_TradingName_List)) -> NO | D124: dms_LongRural_flag_NSP
B125: Fifth Feeder Category (eg. TasNetworks (D)) | C125: =INDEX(dms_FeederType_5_flag,MATCH(dms_TradingName,dms_TradingName_List)) -> NO | D125: dms_FifthFeeder_flag_NSP | E125: =INDEX(dms_FeederType_5_flag,MATCH(dms_TradingName,dms_TradingName_List))
B127: DISCARD FILES
B128: discard this record? | C128: NO | D128: dms_DISCARD | E128: If record is to be discarded from DB set this flag to YES
B130: SUBSET FILES
B131: Is this Submission File a Subset File | C131: NO | D131: dms_Partial
B134: REGULATORY YEARS FOR MULTI RYE SUBMISSIONS
B135: Multiple RYE flag | C135: NO | D135: dms_Multi_RYE_flag
C136: Manually specify RYE | D136: Named ranges to apply
C137: 2013 | D137: dms_RYE_01
C138: 2014 | D138: dms_RYE_02
C139: 2015 | D139: dms_RYE_03
C140: 2016 | D140: dms_RYE_04
C141: 2017 | D141: dms_RYE_05
C142: 2018 | D142: dms_RYE_06
C143: 2019 | D143: dms_RYE_07
C144: 2020 | D144: dms_RYE_08
C145: 2021 | D145: dms_RYE_09

Sheet Instructions
B2: =CONCATENATE(dms_Sector," ",dms_Segment," ", "Pipeline Service Provider") -> Gas Distribution Pipeline Service Provider
B3: =IF(dms_Model="Reset","Regulatory Proposal RIN Template","Annual Reporting RIN") -> Regulatory Proposal RIN Template
B5: INSTRUCTIONS
B6: GENERAL | C6: Complete the Business & other details worksheet before entering data or values in any other worksheets. The Business & other details worksheet is linked to other worksheets within the workbook and automatically generates certain column headings and conditional formatting.
B8: CONFIDENTIAL INFORMATION | C8: Please use the macro at the top of each worksheet to identify confidential information in the confidential workbook.
C9: -Do this by selecting the cell or cells that contain confidential information and then run the Mark selection as CONFIDENTIAL macro. This will format the cells a specific colour that is identified by the AER's database which in turn marks that information as confidential. -To reverse this, select the cell or cells and run the Return selection to NON-CONFIDENTIAL macro.
B11: RESPONSES | C11: Please return two (2) files to the AER: 1. A confidential version which must contain a complete set of all responses with confidential information marked using the Mark selection CONFIDENTIAL macro and which has been completed using the locked template file provided by the AER. 2. A public version with confidential information either removed completely or aggregated in some form together with writtten consent to disclose the public version of the response. Use the drop down box on the Business and other details worksheet to identify the file as either confidential ('consolidated') or public.
B13: AMENDMENTS | C13: If an NSP wishes to correct data previously submitted to the AER it should resubmit that data using the original completed submission as the starting point. Please make any necessary changes to the data. Data that is not being amended should be left unchanged. NSPs must identify the reason for the amendments in the Amendment Reason box on the Business and other details worksheet. NSPs may provide further details regarding any amendments in the Amendments worksheet. .
C14: NSP may use Amended Data macro to highlight cells that contain amended data. NB: if data is also CONFIDENTIAL, re-apply the Confidentiality macro after applying the Amended macro
C15: Please resubmit two (2) files - a confidential version and a public version of the amended submission to the AER
B17: UNITS OF MEASURE | C17: All amounts are to be unrounded and reported on a one for one basis: that is 1000 is to be entered as '1000'. Applicable units of measure may be identified in the table column headings or row descriptors.
B19: INPUT / NON-INPUT CELLS
D20: Yellow = Input cell (mandatory)
D21: Darker yellow = input cell (mandatory)
D22: Orange = input cell (if data available)
D23: Grey = Not applicable/No inputs required
D24: PLEASE DO NOT ENTER TEXT into cells that are to contain numeric data.
B27: NAVIGATION | C27: Many tables in the worksheets have been "grouped" to allow for easy navigation. To ungroup or group data use the outline symbols in the left margin (for Row groupings) or above the columns (for column groupings).

Sheet CONTENTS
B1: =INDEX(dms_Worksheet_List,MATCH(dms_Model,dms_Model_List)) -> REGULATORY REPORTING STATEMENT
B2: =dms_TradingName -> AusNet (Gas)
B3: =dms_Header_Span -> 2021-22 to 2027-28
C7: CONTENTS
C9: TEMPLATE DATE | D9: FINAL RIN MARCH 2022
C11: SUBMISSION | D11: Business & other details
C13: EXPENDITURE | D13: E1. Expenditure Summary
D14: E2. Mains Repex
D15: E3. Mains Augex
D16: E4. Meter replacement
D17: E5. New Connections
D18: E6. Non-network
D19: E10. Overheads
D20: E12. ICT
D21: E13. Other capex
D22: E17. Step changes
D23: E20. Opex
D24: E21. ARS
D25: E25. Escalators
C27: NETWORK | D27: N1. Demand
D28: N2. Network characteristcs
C30: SERVICE | D30: S1.1. Customer numbers - by customer type
D31: S1.2. Customer numbers - by tariff
D32: S10. Supply Quality
D33: S11. Network reliability
C35: FINANCIAL | D35: F3. Revenue
C37: ADMIN | D37: Additional disclosures

Sheet Business & other details
V1: =INDEX(dms_Worksheet_List,MATCH(dms_Model,dms_Model_List)) -> REGULATORY REPORTING STATEMENT
V2: =dms_TradingName -> AusNet (Gas)
V3: =dms_Header_Span -> 2021-22 to 2027-28
V4: BUSINESS & OTHER DETAILS
V6: INSTRUCTIONS
V7: Complete the following business details regulatory template before entering data or values in any other regulatory template. This regulatory template is linked to other cells within the spreadsheet and automatically generates column headings and conditional formatting to distinguish business specific input and non-input cells.
Q9: SUBMISSION PARTICULARS INPUT SHEET
V12: ENTITY DETAILS
V14: Business Name
V16: Short name | AL16: AusNet (Gas)
V17: ACN/ABN | AL17: =INDEX(dms_ABN_List,MATCH(dms_TradingName,dms_TradingName_List)) -> 086015036
V21: Business Address | BQ21: Postal Address
V23: Address 1 | AL23: =INDEX(dms_Addr1_List,MATCH(dms_TradingName,dms_TradingName_List)) -> Level 31 | BI23: Address 1
V24: Address 2 | AL24: =IF(ISBLANK(INDEX(dms_Addr2_List,MATCH(dms_TradingName,dms_TradingName_List))),"",(INDEX(dms_Addr2_List,MATCH(dms_TradingName,dms_TradingName_List)))) -> 2 Southbank Boulevard | BI24: Address 2
V25: Suburb | AL25: =INDEX(dms_Suburb_List,MATCH(dms_TradingName,dms_TradingName_List)) -> SOUTHBANK | BI25: Suburb
V26: State | AL26: =INDEX(dms_State_List,MATCH(dms_TradingName,dms_TradingName_List)) -> Vic | AV26: Post code | AX26: =INDEX(dms_PostCode_List,MATCH(dms_TradingName,dms_TradingName_List)) -> 3008 | BI26: State | BQ26: =INDEX(dms_PState_List,MATCH(dms_TradingName,dms_TradingName_List)) -> Vic | CA26: Post code
BA28: `
V30: Contact Names
V32: Name | BI32: Name
V33: Phone | BI33: Phone
V34: Email | BI34: Email
Q39: REGULATORY CONTROL PERIODS
Z42: Forthcoming period | AL42: 2023-24 | AU42: =FRCP_y2 -> 2024-25 | BD42: =FRCP_y3 -> 2025-26 | BM42: =FRCP_y4 -> 2026-27 | BV42: =FRCP_y5 -> 2027-28
AL43: =FRCP_y6 -> 2028-29 | AU43: =FRCP_y7 -> 2029-30 | BD43: =FRCP_y8 -> 2030-31 | BM43: =FRCP_y9 -> 2031-32 | BV43: =FRCP_y10 -> 2032-33
AL44: =FRCP_y11 -> 2033-34 | AU44: =FRCP_y12 -> 2034-35 | BD44: =FRCP_y13 -> 2035-36 | BM44: =FRCP_y14 -> 2036-37 | BV44: =FRCP_y15 -> 
Z46: Transitional period | AL46: 1 January 2023 to 30 June 2023
X48: RESETS | Z48: Current period | AL48: 2018 | AU48: 2019 | BD48: 2020 | BM48: 2021 | BV48: 2022
AL49: =CRCP_y6 -> 2023-24 | AU49: =CRCP_y7 -> 2024-25 | BD49: =CRCP_y8 -> 2025-26 | BM49: =CRCP_y9 -> 2026-27 | BV49: =CRCP_y10 -> 2027-28
AL50: =CRCP_y11 -> 2028-29 | AU50: =CRCP_y12 -> 2029-30 | BD50: =CRCP_y13 -> 2030-31 | BM50: =CRCP_y14 -> 2031-32 | BV50: =CRCP_y15 -> 2032-33
Z52: Previous period | AL52: 2013 | AU52: 2014 | BD52: 2015 | BM52: 2016 | BV52: 2017
AL53: =PRCP_y6 -> 2018-19 | AU53: =PRCP_y7 -> 2019-20 | BD53: =PRCP_y8 -> 2020-21 | BM53: =PRCP_y9 -> 2021-22 | BV53: =PRCP_y10 -> 2022-23
AL54: =PRCP_y11 -> 2023-24 | AU54: =PRCP_y12 -> 2024-25 | BD54: =PRCP_y13 -> 2025-26 | BM54: =PRCP_y14 -> 2026-27 | BV54: =PRCP_y15 -> 2027-28
Z56: Commencing year | AL56: 2023-24
X57: ANNUAL RINS
Z58: Final year | AL58: 2027-28
Q62: SUBMISSION DETAILS
Z64: RIN type | AL64: =INDIRECT(dms_Model) -> Regulatory Reporting (Reset)
Z66: Source | AL66: Regulatory proposal
X68: THIS FILE | Z68: Data Quality | AL68: Consolidated
Z70: Confidentiality Status | AL70: Public
Z72: Amended RIN Amendment Reason | AL72: .
Z76: Submission Date | AL76: 2022-07-01 | BD76: Please enter date this file submitted to AER

Sheet N1. Demand
B1: =INDEX(dms_Worksheet_List,MATCH(dms_Model,dms_Model_List)) -> REGULATORY REPORTING STATEMENT
B2: =dms_TradingName -> AusNet (Gas)
B3: =dms_Header_Span -> 2021-22 to 2027-28
B4: N1. DEMAND
B6: N1.1 - DEMAND - BY CUSTOMER TYPE
C7: VOLUME
C8: GJ
C9: =VLOOKUP(CRCP_y4,'AER lookups'!$B$52:$C$101,2,0) -> 2022 | D9: =CONCATENATE("1 Jan-30 Jun "&(C9+1)) -> 1 Jan-30 Jun 2023 | E9: =FRCP_y1 -> 2023-24 | F9: =FRCP_y2 -> 2024-25 | G9: =FRCP_y3 -> 2025-26 | H9: =FRCP_y4 -> 2026-27 | I9: =FRCP_y5 -> 2027-28
B10: Residential | C10: =SUM(C21,C23,C25,C27) -> 31708822.43 | D10: =SUM(D21,D23,D25,D27) -> 12539510.83 | E10: 31255312.32 | F10: 31135197.11 | G10: 31298330.5 | H10: 31746711.93 | I10: 32283972.95
B11: Commercial | C11: =SUM(C22,C24,C26,C28) -> 6104918.293 | D11: 2942804.879 | E11: 6261663.615 | F11: 6180197.937 | G11: 6156615.817 | H11: 6188099.386 | I11: 6237212.103
B12: Industrial | C12: n/a | D12: n/a | E12: n/a | F12: n/a | G12: n/a | H12: n/a | I12: n/a
B13: Total | C13: =SUM(C10:C12) -> 37813740.72 | D13: 15482315.71 | E13: 37516975.93 | F13: 37315395.05 | G13: 37454946.32 | H13: 37934811.32 | I13: 38521185.06
B17: N1.2 - DEMAND - BY TARIFF
C18: VOLUMES
C19: GJ
B20: Tariff | C20: =VLOOKUP(CRCP_y4,'AER lookups'!$B$52:$C$101,2,0) -> 2022 | D20: =CONCATENATE("1 Jan-30 Jun "&(C20+1)) -> 1 Jan-30 Jun 2023 | E20: =FRCP_y1 -> 2023-24 | F20: =FRCP_y2 -> 2024-25 | G20: =FRCP_y3 -> 2025-26 | H20: =FRCP_y4 -> 2026-27 | I20: =FRCP_y5 -> 2027-28
B21: Tariff V Central Domestic | C21: 24263459.71 | D21: 9620704.105 | E21: 23965943.75 | F21: 23906012.71 | G21: 24062694.88 | H21: 24435483.59 | I21: 24875370.22
B22: Tariff V Central Non-Domestic | C22: 4413144.567 | D22: 2146111.818 | E22: 4531957.289 | F22: 4476913.011 | G22: 4463803.078 | H22: 4490325.569 | I22: 4529526.518
B23: Tariff V West Domestic | C23: 6777210.686 | D23: 2652853.384 | E23: 6613543.823 | F23: 6543081.169 | G23: 6533438.955 | H23: 6586822.593 | I23: 6660053.302
B24: Tariff V West Non-Domestic | C24: 1591429.145 | D24: 747691.733 | E24: 1626667.536 | F24: 1601360.926 | G24: 1591049.518 | H24: 1595268.115 | I24: 1604147.373
B25: Tariff V Adjoining Central Domestic | C25: 73681.30368 | D25: 30588.66683 | E25: 77663.24122 | F25: 80918.2073 | G25: 84809.65408 | H25: 89363.69887 | I25: 94133.48955
B26: Tariff V Adjoining Central Non-Domestic | C26: 3607.58547 | D26: 1911.638516 | E26: 3788.183039 | F26: 3822.262572 | G26: 3891.157784 | H26: 3991.288122 | I26: 4101.749099
B27: Tariff V Adjoining West Domestic | C27: 594470.7259 | D27: 235364.6785 | E27: 598161.4993 | F27: 605185.0321 | G27: 617387.0139 | H27: 635042.0515 | I27: 654415.9371
B28: Tariff V Adjoining West Non-Domestic | C28: 96736.9949 | D28: 47089.68898 | E28: 99250.60731 | F28: 98101.7374 | G28: 97872.06231 | H28: 98514.41329 | I28: 99436.46304
B29: Tariff D West & Central | C29: n/a | D29: n/a | E29: n/a | F29: n/a | G29: n/a | H29: n/a | I29: n/a
B30: Tariff D Adjoining West & Central | C30: n/a | D30: n/a | E30: n/a | F30: n/a | G30: n/a | H30: n/a | I30: n/a
B31: Tariff M West & Central | C31: n/a | D31: n/a | E31: n/a | F31: n/a | G31: n/a | H31: n/a | I31: n/a
B32: Tariff M Adjoining West & Central | C32: n/a | D32: n/a | E32: n/a | F32: n/a | G32: n/a | H32: n/a | I32: n/a
B96: Total | C96: =SUM(C21:C95) -> 37813740.72 | D96: 15482315.71 | E96: 37516975.93 | F96: 37315395.05 | G96: 37454946.32 | H96: 37934811.32 | I96: 38521185.06

Sheet S1.1 Customer numbers
B1: =INDEX(dms_Worksheet_List,MATCH(dms_Model,dms_Model_List)) -> REGULATORY REPORTING STATEMENT
B2: =dms_TradingName -> AusNet (Gas)
B3: =dms_Header_Span -> 2021-22 to 2027-28
B4: S1. CUSTOMER NUMBERS
B6: S1.1 - CUSTOMER NUMBERS - BY CUSTOMER TYPE
B7: A. RESIDENTIAL
C8: VOLUMES
C9: 0's
C10: =VLOOKUP(CRCP_y4,'AER lookups'!$B$52:$C$101,2,0) -> 2022 | D10: =CONCATENATE("1 Jan-30 Jun "&(C10+1)) -> 1 Jan-30 Jun 2023 | E10: =FRCP_y1 -> 2023-24 | F10: =FRCP_y2 -> 2024-25 | G10: =FRCP_y3 -> 2025-26 | H10: =FRCP_y4 -> 2026-27 | I10: =FRCP_y5 -> 2027-28
B11: Customer numbers - Beginning of year | C11: =SUM('S1.2 Customer numbers'!C11,'S1.2 Customer numbers'!C13,'S1.2 Customer numbers'!C15,'S1.2 Customer numbers'!C17) -> 759407 | D11: =C12 -> 775187.3493 | E11: =D12 -> 783516.8248 | F11: 783516.8248 | G11: 800434.918 | H11: 817897.5092 | I11: 835888.9436
B12: Customer numbers - End of year | C12: =+SUM('S1.2 Customer numbers'!C92,'S1.2 Customer numbers'!C94,'S1.2 Customer numbers'!C96,'S1.2 Customer numbers'!C98) -> 775187.3493 | D12: =+SUM('S1.2 Customer numbers'!D92,'S1.2 Customer numbers'!D94,'S1.2 Customer numbers'!D96,'S1.2 Customer numbers'!D98) -> 783516.8248 | E12: =+SUM('S1.2 Customer numbers'!E92,'S1.2 Customer numbers'!E94,'S1.2 Customer numbers'!E96,'S1.2 Customer numbers'!E98) -> 783516.8248 | F12: =+SUM('S1.2 Customer numbers'!F92,'S1.2 Customer numbers'!F94,'S1.2 Customer numbers'!F96,'S1.2 Customer numbers'!F98) -> 800434.918 | G12: =+SUM('S1.2 Customer numbers'!G92,'S1.2 Customer numbers'!G94,'S1.2 Customer numbers'!G96,'S1.2 Customer numbers'!G98) -> 817897.5092 | H12: =+SUM('S1.2 Customer numbers'!H92,'S1.2 Customer numbers'!H94,'S1.2 Customer numbers'!H96,'S1.2 Customer numbers'!H98) -> 835888.9436 | I12: =+SUM('S1.2 Customer numbers'!I92,'S1.2 Customer numbers'!I94,'S1.2 Customer numbers'!I96,'S1.2 Customer numbers'!I98) -> 853341.2471
B13: Total customer connections | C13: =+SUM('S1.2 Customer numbers'!C173,'S1.2 Customer numbers'!C175,'S1.2 Customer numbers'!C177,'S1.2 Customer numbers'!C179) -> 17733.30397 | D13: =+SUM('S1.2 Customer numbers'!D173,'S1.2 Customer numbers'!D175,'S1.2 Customer numbers'!D177,'S1.2 Customer numbers'!D179) -> 9317.036865 | E13: =+SUM('S1.2 Customer numbers'!E173,'S1.2 Customer numbers'!E175,'S1.2 Customer numbers'!E177,'S1.2 Customer numbers'!E179) -> 18938.32736 | F13: =+SUM('S1.2 Customer numbers'!F173,'S1.2 Customer numbers'!F175,'S1.2 Customer numbers'!F177,'S1.2 Customer numbers'!F179) -> 19529.47972 | G13: =+SUM('S1.2 Customer numbers'!G173,'S1.2 Customer numbers'!G175,'S1.2 Customer numbers'!G177,'S1.2 Customer numbers'!G179) -> 20106.43837 | H13: =+SUM('S1.2 Customer numbers'!H173,'S1.2 Customer numbers'!H175,'S1.2 Customer numbers'!H177,'S1.2 Customer numbers'!H179) -> 19613.91553 | I13: =+SUM('S1.2 Customer numbers'!I173,'S1.2 Customer numbers'!I175,'S1.2 Customer numbers'!I177,'S1.2 Customer numbers'!I179) -> 19102.87336
B14: Total customer disconnections | C14: =+SUM('S1.2 Customer numbers'!C254,'S1.2 Customer numbers'!C256,'S1.2 Customer numbers'!C258,'S1.2 Customer numbers'!C260) -> 1952.95469 | D14: =+SUM('S1.2 Customer numbers'!D254,'S1.2 Customer numbers'!D256,'S1.2 Customer numbers'!D258,'S1.2 Customer numbers'!D260) -> 987.5613731 | E14: =+SUM('S1.2 Customer numbers'!E254,'S1.2 Customer numbers'!E256,'S1.2 Customer numbers'!E258,'S1.2 Customer numbers'!E260) -> 18938.32736 | F14: =+SUM('S1.2 Customer numbers'!F254,'S1.2 Customer numbers'!F256,'S1.2 Customer numbers'!F258,'S1.2 Customer numbers'!F260) -> 2611.38652 | G14: =+SUM('S1.2 Customer numbers'!G254,'S1.2 Customer numbers'!G256,'S1.2 Customer numbers'!G258,'S1.2 Customer numbers'!G260) -> 2643.847153 | H14: =+SUM('S1.2 Customer numbers'!H254,'S1.2 Customer numbers'!H256,'S1.2 Customer numbers'!H258,'S1.2 Customer numbers'!H260) -> 1622.481118 | I14: =+SUM('S1.2 Customer numbers'!I254,'S1.2 Customer numbers'!I256,'S1.2 Customer numbers'!I258,'S1.2 Customer numbers'!I260) -> 1650.569894
B17: B. COMMERCIAL
C18: VOLUMES
C19: 0's
C20: =VLOOKUP(CRCP_y4,'AER lookups'!$B$52:$C$101,2,0) -> 2022 | D20: =CONCATENATE("1 Jan-30 Jun "&(C20+1)) -> 1 Jan-30 Jun 2023 | E20: =FRCP_y1 -> 2023-24 | F20: =FRCP_y2 -> 2024-25 | G20: =FRCP_y3 -> 2025-26 | H20: =FRCP_y4 -> 2026-27 | I20: =FRCP_y5 -> 2027-28
B21: Customer numbers - Beginning of year | C21: =SUM('S1.2 Customer numbers'!C12,'S1.2 Customer numbers'!C14,'S1.2 Customer numbers'!C16,'S1.2 Customer numbers'!C18) -> 19019 | D21: =C22 -> 19067.91908 | E21: =D22 -> 19093.74046 | F21: 19093.74046 | G21: 19146.18655 | H21: 19200.32058 | I21: 19256.09403
B22: Customer numbers - End of year | C22: =+SUM('S1.2 Customer numbers'!C93,'S1.2 Customer numbers'!C95,'S1.2 Customer numbers'!C97,'S1.2 Customer numbers'!C99) -> 19067.91908 | D22: =+SUM('S1.2 Customer numbers'!D93,'S1.2 Customer numbers'!D95,'S1.2 Customer numbers'!D97,'S1.2 Customer numbers'!D99) -> 19093.74046 | E22: =+SUM('S1.2 Customer numbers'!E93,'S1.2 Customer numbers'!E95,'S1.2 Customer numbers'!E97,'S1.2 Customer numbers'!E99) -> 19093.74046 | F22: =+SUM('S1.2 Customer numbers'!F93,'S1.2 Customer numbers'!F95,'S1.2 Customer numbers'!F97,'S1.2 Customer numbers'!F99) -> 19146.18655 | G22: =+SUM('S1.2 Customer numbers'!G93,'S1.2 Customer numbers'!G95,'S1.2 Customer numbers'!G97,'S1.2 Customer numbers'!G99) -> 19200.32058 | H22: =+SUM('S1.2 Customer numbers'!H93,'S1.2 Customer numbers'!H95,'S1.2 Customer numbers'!H97,'S1.2 Customer numbers'!H99) -> 19256.09403 | I22: =+SUM('S1.2 Customer numbers'!I93,'S1.2 Customer numbers'!I95,'S1.2 Customer numbers'!I97,'S1.2 Customer numbers'!I99) -> 19310.19617
B23: Total customer connections | C23: =SUM('S1.2 Customer numbers'!C174,'S1.2 Customer numbers'!C176,'S1.2 Customer numbers'!C178,'S1.2 Customer numbers'!C180) -> 138.7333546 | D23: =SUM('S1.2 Customer numbers'!D174,'S1.2 Customer numbers'!D176,'S1.2 Customer numbers'!D178,'S1.2 Customer numbers'!D180) -> 70.80162577 | E23: =SUM('S1.2 Customer numbers'!E174,'S1.2 Customer numbers'!E176,'S1.2 Customer numbers'!E178,'S1.2 Customer numbers'!E180) -> 142.7037125 | F23: =SUM('S1.2 Customer numbers'!F174,'S1.2 Customer numbers'!F176,'S1.2 Customer numbers'!F178,'S1.2 Customer numbers'!F180) -> 144.6985322 | G23: =SUM('S1.2 Customer numbers'!G174,'S1.2 Customer numbers'!G176,'S1.2 Customer numbers'!G178,'S1.2 Customer numbers'!G180) -> 146.6543952 | H23: =SUM('S1.2 Customer numbers'!H174,'S1.2 Customer numbers'!H176,'S1.2 Customer numbers'!H178,'S1.2 Customer numbers'!H180) -> 145.2896684 | I23: =SUM('S1.2 Customer numbers'!I174,'S1.2 Customer numbers'!I176,'S1.2 Customer numbers'!I178,'S1.2 Customer numbers'!I180) -> 143.8621728
B24: Total customer disconnections | C24: =SUM('S1.2 Customer numbers'!C255,'S1.2 Customer numbers'!C257,'S1.2 Customer numbers'!C259,'S1.2 Customer numbers'!C261) -> 89.81427179 | D24: =SUM('S1.2 Customer numbers'!D255,'S1.2 Customer numbers'!D257,'S1.2 Customer numbers'!D259,'S1.2 Customer numbers'!D261) -> 44.98025174 | E24: =SUM('S1.2 Customer numbers'!E255,'S1.2 Customer numbers'!E257,'S1.2 Customer numbers'!E259,'S1.2 Customer numbers'!E261) -> 142.7037125 | F24: =SUM('S1.2 Customer numbers'!F255,'S1.2 Customer numbers'!F257,'S1.2 Customer numbers'!F259,'S1.2 Customer numbers'!F261) -> 92.25244323 | G24: =SUM('S1.2 Customer numbers'!G255,'S1.2 Customer numbers'!G257,'S1.2 Customer numbers'!G259,'S1.2 Customer numbers'!G261) -> 92.52036247 | H24: =SUM('S1.2 Customer numbers'!H255,'S1.2 Customer numbers'!H257,'S1.2 Customer numbers'!H259,'S1.2 Customer numbers'!H261) -> 89.51622171 | I24: =SUM('S1.2 Customer numbers'!I255,'S1.2 Customer numbers'!I257,'S1.2 Customer numbers'!I259,'S1.2 Customer numbers'!I261) -> 89.76003209
B27: C. INDUSTRIAL
C28: VOLUMES
C29: 0's
C30: =VLOOKUP(CRCP_y4,'AER lookups'!$B$52:$C$101,2,0) -> 2022 | D30: =CONCATENATE("1 Jan-30 Jun "&(C30+1)) -> 1 Jan-30 Jun 2023 | E30: =FRCP_y1 -> 2023-24 | F30: =FRCP_y2 -> 2024-25 | G30: =FRCP_y3 -> 2025-26 | H30: =FRCP_y4 -> 2026-27 | I30: =FRCP_y5 -> 2027-28
B31: Customer numbers - Beginning of year | C31: n/a | D31: n/a | E31: n/a | F31: n/a | G31: n/a | H31: n/a | I31: n/a
B32: Customer numbers - End of year | C32: n/a | D32: n/a | E32: n/a | F32: n/a | G32: n/a | H32: n/a | I32: n/a
B33: Total customer connections | C33: n/a | D33: n/a | E33: n/a | F33: n/a | G33: n/a | H33: n/a | I33: n/a
B34: Total customer disconnections | C34: n/a | D34: n/a | E34: n/a | F34: n/a | G34: n/a | H34: n/a | I34: n/a

Sheet S1.2 Customer numbers
B1: =INDEX(dms_Worksheet_List,MATCH(dms_Model,dms_Model_List)) -> REGULATORY REPORTING STATEMENT
B2: =dms_TradingName -> AusNet (Gas)
B3: =dms_Header_Span -> 2021-22 to 2027-28
B4: S1. CUSTOMER NUMBERS
B6: S1.2 - CUSTOMER NUMBERS - BY TARIFF
B7: S1.2.1 - CUSTOMER NUMBERS - BEGINNING OF YEAR
C8: VOLUMES
C9: 0's
C10: =VLOOKUP(CRCP_y4,'AER lookups'!$B$52:$C$101,2,0) -> 2022 | D10: =CONCATENATE("1 Jan-30 Jun "&(C10+1)) -> 1 Jan-30 Jun 2023 | E10: =FRCP_y1 -> 2023-24 | F10: =FRCP_y2 -> 2024-25 | G10: =FRCP_y3 -> 2025-26 | H10: =FRCP_y4 -> 2026-27 | I10: =FRCP_y5 -> 2027-28
B11: =IF(ISBLANK('N1. Demand'!B21),"",'N1. Demand'!B21) -> Tariff V Central Domestic | C11: 589629 | D11: =C92 -> 602504.935 | E11: 609288.9527 | F11: 609288.9527 | G11: 623125.3987 | H11: 637468.6141 | I11: 652277.5266
B12: =IF(ISBLANK('N1. Demand'!B22),"",'N1. Demand'!B22) -> Tariff V Central Non-Domestic | C12: 11966 | D12: =C93 -> 12005.9154 | E12: 12026.94585 | F12: 12026.94585 | G12: 12069.83884 | H12: 12114.3028 | I12: 12160.21043
B13: =IF(ISBLANK('N1. Demand'!B23),"",'N1. Demand'!B23) -> Tariff V West Domestic | C13: 155189 | D13: =C94 -> 157403.5624 | E13: 158609.1705 | F13: 158609.1705 | G13: 160983.4027 | H13: 163360.0986 | I13: 165784.6803
B14: =IF(ISBLANK('N1. Demand'!B24),"",'N1. Demand'!B24) -> Tariff V West Non-Domestic | C14: 6713 | D14: =C95 -> 6719.865144 | E14: 6723.602528 | F14: 6723.602528 | G14: 6730.962648 | H14: 6738.330406 | I14: 6745.846609
B15: =IF(ISBLANK('N1. Demand'!B25),"",'N1. Demand'!B25) -> Tariff V Adjoining Central Domestic | C15: 2306 | D15: =C96 -> 2491.952976 | E15: 2587.286538 | F15: 2587.286538 | G15: 2780.214896 | H15: 2977.733405 | I15: 3179.965393
B16: =IF(ISBLANK('N1. Demand'!B26),"",'N1. Demand'!B26) -> Tariff V Adjoining Central Non-Domestic | C16: 25 | D16: =C97 -> 25.57645423 | E16: 25.87198827 | F16: 25.87198827 | G16: 26.47006618 | H16: 27.08237356 | I16: 27.70929272
B17: =IF(ISBLANK('N1. Demand'!B27),"",'N1. Demand'!B27) -> Tariff V Adjoining West Domestic | C17: 12283 | D17: =C98 -> 12786.89889 | E17: 13031.41508 | F17: 13031.41508 | G17: 13545.90166 | H17: 14091.06309 | I17: 14646.77131
B18: =IF(ISBLANK('N1. Demand'!B28),"",'N1. Demand'!B28) -> Tariff V Adjoining West Non-Domestic | C18: 315 | D18: =C99 -> 316.5620866 | E18: 317.3200867 | F18: 317.3200867 | G18: 318.9149951 | H18: 320.6049956 | I18: 322.3276911
B19: =IF(ISBLANK('N1. Demand'!B29),"",'N1. Demand'!B29) -> Tariff D West & Central | D19: =C100 -> 0 | E19: 0 | F19: 0 | G19: 0 | H19: 0 | I19: 0
B20: =IF(ISBLANK('N1. Demand'!B30),"",'N1. Demand'!B30) -> Tariff D Adjoining West & Central | D20: =C101 -> 0 | E20: 0 | F20: 0 | G20: 0 | H20: 0 | I20: 0
B21: =IF(ISBLANK('N1. Demand'!B31),"",'N1. Demand'!B31) -> Tariff M West & Central | D21: =C102 -> 0 | E21: 0 | F21: 0 | G21: 0 | H21: 0 | I21: 0
B22: =IF(ISBLANK('N1. Demand'!B32),"",'N1. Demand'!B32) -> Tariff M Adjoining West & Central | D22: =C103 -> 0 | E22: 0 | F22: 0 | G22: 0 | H22: 0 | I22: 0
B23: =IF(ISBLANK('N1. Demand'!B33),"",'N1. Demand'!B33) ->  | D23: =C104 -> 0 | E23: 0 | F23: 0 | G23: 0 | H23: 0 | I23: 0
B24: =IF(ISBLANK('N1. Demand'!B34),"",'N1. Demand'!B34) ->  | D24: =C105 -> 0 | E24: 0 | F24: 0 | G24: 0 | H24: 0 | I24: 0
B25: =IF(ISBLANK('N1. Demand'!B35),"",'N1. Demand'!B35) ->  | D25: =C106 -> 0 | E25: 0 | F25: 0 | G25: 0 | H25: 0 | I25: 0
B26: =IF(ISBLANK('N1. Demand'!B36),"",'N1. Demand'!B36) ->  | D26: =C107 -> 0 | E26: 0 | F26: 0 | G26: 0 | H26: 0 | I26: 0
B27: =IF(ISBLANK('N1. Demand'!B37),"",'N1. Demand'!B37) ->  | D27: =C108 -> 0 | E27: 0 | F27: 0 | G27: 0 | H27: 0 | I27: 0
B28: =IF(ISBLANK('N1. Demand'!B38),"",'N1. Demand'!B38) ->  | D28: =C109 -> 0 | E28: 0 | F28: 0 | G28: 0 | H28: 0 | I28: 0
B29: =IF(ISBLANK('N1. Demand'!B39),"",'N1. Demand'!B39) ->  | D29: =C110 -> 0 | E29: 0 | F29: 0 | G29: 0 | H29: 0 | I29: 0
B30: =IF(ISBLANK('N1. Demand'!B40),"",'N1. Demand'!B40) ->  | D30: =C111 -> 0 | E30: 0 | F30: 0 | G30: 0 | H30: 0 | I30: 0
B31: =IF(ISBLANK('N1. Demand'!B41),"",'N1. Demand'!B41) ->  | D31: =C112 -> 0 | E31: 0 | F31: 0 | G31: 0 | H31: 0 | I31: 0
B32: =IF(ISBLANK('N1. Demand'!B42),"",'N1. Demand'!B42) ->  | D32: =C113 -> 0 | E32: 0 | F32: 0 | G32: 0 | H32: 0 | I32: 0
B33: =IF(ISBLANK('N1. Demand'!B43),"",'N1. Demand'!B43) ->  | D33: =C114 -> 0 | E33: 0 | F33: 0 | G33: 0 | H33: 0 | I33: 0
B34: =IF(ISBLANK('N1. Demand'!B44),"",'N1. Demand'!B44) ->  | D34: =C115 -> 0 | E34: 0 | F34: 0 | G34: 0 | H34: 0 | I34: 0
B35: =IF(ISBLANK('N1. Demand'!B45),"",'N1. Demand'!B45) ->  | D35: =C116 -> 0 | E35: 0 | F35: 0 | G35: 0 | H35: 0 | I35: 0
B36: =IF(ISBLANK('N1. Demand'!B46),"",'N1. Demand'!B46) ->  | D36: =C117 -> 0 | E36: 0 | F36: 0 | G36: 0 | H36: 0 | I36: 0
B37: =IF(ISBLANK('N1. Demand'!B47),"",'N1. Demand'!B47) ->  | D37: =C118 -> 0 | E37: 0 | F37: 0 | G37: 0 | H37: 0 | I37: 0
B38: =IF(ISBLANK('N1. Demand'!B48),"",'N1. Demand'!B48) ->  | D38: =C119 -> 0 | E38: 0 | F38: 0 | G38: 0 | H38: 0 | I38: 0
B39: =IF(ISBLANK('N1. Demand'!B49),"",'N1. Demand'!B49) ->  | D39: =C120 -> 0 | E39: 0 | F39: 0 | G39: 0 | H39: 0 | I39: 0
B40: =IF(ISBLANK('N1. Demand'!B50),"",'N1. Demand'!B50) ->  | D40: =C121 -> 0 | E40: 0 | F40: 0 | G40: 0 | H40: 0 | I40: 0
B41: =IF(ISBLANK('N1. Demand'!B51),"",'N1. Demand'!B51) ->  | D41: =C122 -> 0 | E41: 0 | F41: 0 | G41: 0 | H41: 0 | I41: 0
B42: =IF(ISBLANK('N1. Demand'!B52),"",'N1. Demand'!B52) ->  | D42: =C123 -> 0 | E42: 0 | F42: 0 | G42: 0 | H42: 0 | I42: 0
B43: =IF(ISBLANK('N1. Demand'!B53),"",'N1. Demand'!B53) ->  | D43: =C124 -> 0 | E43: 0 | F43: 0 | G43: 0 | H43: 0 | I43: 0
B44: =IF(ISBLANK('N1. Demand'!B54),"",'N1. Demand'!B54) ->  | D44: =C125 -> 0 | E44: 0 | F44: 0 | G44: 0 | H44: 0 | I44: 0
B45: =IF(ISBLANK('N1. Demand'!B55),"",'N1. Demand'!B55) ->  | D45: =C126 -> 0 | E45: 0 | F45: 0 | G45: 0 | H45: 0 | I45: 0
B46: =IF(ISBLANK('N1. Demand'!B56),"",'N1. Demand'!B56) ->  | D46: =C127 -> 0 | E46: 0 | F46: 0 | G46: 0 | H46: 0 | I46: 0
B47: =IF(ISBLANK('N1. Demand'!B57),"",'N1. Demand'!B57) ->  | D47: =C128 -> 0 | E47: 0 | F47: 0 | G47: 0 | H47: 0 | I47: 0
B48: =IF(ISBLANK('N1. Demand'!B58),"",'N1. Demand'!B58) ->  | D48: =C129 -> 0 | E48: 0 | F48: 0 | G48: 0 | H48: 0 | I48: 0
B49: =IF(ISBLANK('N1. Demand'!B59),"",'N1. Demand'!B59) ->  | D49: =C130 -> 0 | E49: 0 | F49: 0 | G49: 0 | H49: 0 | I49: 0
B50: =IF(ISBLANK('N1. Demand'!B60),"",'N1. Demand'!B60) ->  | D50: =C131 -> 0 | E50: =D131 -> 0 | F50: =E131 -> 0 | G50: =F131 -> 0 | H50: =G131 -> 0 | I50: =H131 -> 0
B51: =IF(ISBLANK('N1. Demand'!B61),"",'N1. Demand'!B61) ->  | D51: 0 | E51: 0 | F51: 0 | G51: 0 | H51: 0 | I51: 0
B52: =IF(ISBLANK('N1. Demand'!B62),"",'N1. Demand'!B62) ->  | D52: 0 | E52: 0 | F52: 0 | G52: 0 | H52: 0 | I52: 0
B53: =IF(ISBLANK('N1. Demand'!B63),"",'N1. Demand'!B63) ->  | D53: =C134 -> 0 | E53: 0 | F53: 0 | G53: 0 | H53: 0 | I53: 0
B54: =IF(ISBLANK('N1. Demand'!B64),"",'N1. Demand'!B64) ->  | D54: =C135 -> 0 | E54: 0 | F54: 0 | G54: 0 | H54: 0 | I54: 0
B55: =IF(ISBLANK('N1. Demand'!B65),"",'N1. Demand'!B65) ->  | D55: =C136 -> 0 | E55: 0 | F55: 0 | G55: 0 | H55: 0 | I55: 0
B56: =IF(ISBLANK('N1. Demand'!B66),"",'N1. Demand'!B66) ->  | D56: =C137 -> 0 | E56: 0 | F56: 0 | G56: 0 | H56: 0 | I56: 0
B57: =IF(ISBLANK('N1. Demand'!B67),"",'N1. Demand'!B67) ->  | D57: =C138 -> 0 | E57: 0 | F57: 0 | G57: 0 | H57: 0 | I57: 0
B58: =IF(ISBLANK('N1. Demand'!B68),"",'N1. Demand'!B68) ->  | D58: =C139 -> 0 | E58: =D139 -> 0 | F58: =E139 -> 0 | G58: =F139 -> 0 | H58: =G139 -> 0 | I58: =H139 -> 0
B59: =IF(ISBLANK('N1. Demand'!B69),"",'N1. Demand'!B69) ->  | D59: 0 | E59: 0 | F59: 0 | G59: 0 | H59: 0 | I59: 0
B60: =IF(ISBLANK('N1. Demand'!B70),"",'N1. Demand'!B70) ->  | D60: 0 | E60: 0 | F60: 0 | G60: 0 | H60: 0 | I60: 0
B61: =IF(ISBLANK('N1. Demand'!B71),"",'N1. Demand'!B71) ->  | D61: 0 | E61: 0 | F61: 0 | G61: 0 | H61: 0 | I61: 0
B62: =IF(ISBLANK('N1. Demand'!B72),"",'N1. Demand'!B72) ->  | D62: 0 | E62: 0 | F62: 0 | G62: 0 | H62: 0 | I62: 0
B63: =IF(ISBLANK('N1. Demand'!B73),"",'N1. Demand'!B73) ->  | D63: 0 | E63: 0 | F63: 0 | G63: 0 | H63: 0 | I63: 0
B64: =IF(ISBLANK('N1. Demand'!B74),"",'N1. Demand'!B74) ->  | D64: 0 | E64: 0 | F64: 0 | G64: 0 | H64: 0 | I64: 0
B65: =IF(ISBLANK('N1. Demand'!B75),"",'N1. Demand'!B75) ->  | D65: 0 | E65: 0 | F65: 0 | G65: 0 | H65: 0 | I65: 0
B66: =IF(ISBLANK('N1. Demand'!B76),"",'N1. Demand'!B76) ->  | D66: 0 | E66: 0 | F66: 0 | G66: 0 | H66: 0 | I66: 0
B67: =IF(ISBLANK('N1. Demand'!B77),"",'N1. Demand'!B77) ->  | D67: 0 | E67: 0 | F67: 0 | G67: 0 | H67: 0 | I67: 0
B68: =IF(ISBLANK('N1. Demand'!B78),"",'N1. Demand'!B78) ->  | D68: 0 | E68: 0 | F68: 0 | G68: 0 | H68: 0 | I68: 0
B69: =IF(ISBLANK('N1. Demand'!B79),"",'N1. Demand'!B79) ->  | D69: 0 | E69: 0 | F69: 0 | G69: 0 | H69: 0 | I69: 0
B70: =IF(ISBLANK('N1. Demand'!B80),"",'N1. Demand'!B80) ->  | D70: 0 | E70: 0 | F70: 0 | G70: 0 | H70: 0 | I70: 0
B71: =IF(ISBLANK('N1. Demand'!B81),"",'N1. Demand'!B81) ->  | D71: 0 | E71: 0 | F71: 0 | G71: 0 | H71: 0 | I71: 0
B72: =IF(ISBLANK('N1. Demand'!B82),"",'N1. Demand'!B82) ->  | D72: 0 | E72: 0 | F72: 0 | G72: 0 | H72: 0 | I72: 0
B73: =IF(ISBLANK('N1. Demand'!B83),"",'N1. Demand'!B83) ->  | D73: 0 | E73: 0 | F73: 0 | G73: 0 | H73: 0 | I73: 0
B74: =IF(ISBLANK('N1. Demand'!B84),"",'N1. Demand'!B84) ->  | D74: 0 | E74: 0 | F74: 0 | G74: 0 | H74: 0 | I74: 0
B75: =IF(ISBLANK('N1. Demand'!B85),"",'N1. Demand'!B85) ->  | D75: 0 | E75: 0 | F75: 0 | G75: 0 | H75: 0 | I75: 0
B76: =IF(ISBLANK('N1. Demand'!B86),"",'N1. Demand'!B86) ->  | D76: 0 | E76: 0 | F76: 0 | G76: 0 | H76: 0 | I76: 0
B77: =IF(ISBLANK('N1. Demand'!B87),"",'N1. Demand'!B87) ->  | D77: 0 | E77: 0 | F77: 0 | G77: 0 | H77: 0 | I77: 0
B78: =IF(ISBLANK('N1. Demand'!B88),"",'N1. Demand'!B88) ->  | D78: 0 | E78: 0 | F78: 0 | G78: 0 | H78: 0 | I78: 0
B79: =IF(ISBLANK('N1. Demand'!B89),"",'N1. Demand'!B89) ->  | D79: 0 | E79: 0 | F79: 0 | G79: 0 | H79: 0 | I79: 0
B80: =IF(ISBLANK('N1. Demand'!B90),"",'N1. Demand'!B90) ->  | D80: 0 | E80: 0 | F80: 0 | G80: 0 | H80: 0 | I80: 0
B81: =IF(ISBLANK('N1. Demand'!B91),"",'N1. Demand'!B91) ->  | D81: 0 | E81: 0 | F81: 0 | G81: 0 | H81: 0 | I81: 0
B82: =IF(ISBLANK('N1. Demand'!B92),"",'N1. Demand'!B92) ->  | D82: 0 | E82: 0 | F82: 0 | G82: 0 | H82: 0 | I82: 0
B83: =IF(ISBLANK('N1. Demand'!B93),"",'N1. Demand'!B93) ->  | D83: 0 | E83: 0 | F83: 0 | G83: 0 | H83: 0 | I83: 0
B84: =IF(ISBLANK('N1. Demand'!B94),"",'N1. Demand'!B94) ->  | D84: 0 | E84: 0 | F84: 0 | G84: 0 | H84: 0 | I84: 0
B85: =IF(ISBLANK('N1. Demand'!B95),"",'N1. Demand'!B95) ->  | D85: 0 | E85: 0 | F85: 0 | G85: 0 | H85: 0 | I85: 0
B86: Total | C86: =SUM(C11:C85) -> 778426 | D86: =SUM(D11:D85) -> 794255.2684 | E86: 802610.5652 | F86: 802610.5652 | G86: 819581.1045 | H86: 837097.8298 | I86: 855145.0376
B88: S1.2.2 - CUSTOMER NUMBERS - END OF YEAR
C89: VOLUMES
C90: 0's
C91: =VLOOKUP(CRCP_y4,'AER lookups'!$B$52:$C$101,2,0) -> 2022 | D91: =CONCATENATE("1 Jan-30 Jun "&(C91+1)) -> 1 Jan-30 Jun 2023 | E91: =FRCP_y1 -> 2023-24 | F91: =FRCP_y2 -> 2024-25 | G91: =FRCP_y3 -> 2025-26 | H91: =FRCP_y4 -> 2026-27 | I91: =FRCP_y5 -> 2027-28
B92: =IF(ISBLANK(B11),"",B11) -> Tariff V Central Domestic | C92: 602504.935 | D92: 609288.9527 | E92: 609288.9527 | F92: 623125.3987 | G92: 637468.6141 | H92: 652277.5266 | I92: 666598.9021
B93: Tariff V Central Non-Domestic | C93: 12005.9154 | D93: 12026.94585 | E93: 12026.94585 | F93: 12069.83884 | G93: 12114.3028 | H93: 12160.21043 | I93: 12204.6067
B94: Tariff V West Domestic | C94: 157403.5624 | D94: 158609.1705 | E94: 158609.1705 | F94: 160983.4027 | G94: 163360.0986 | H94: 165784.6803 | I94: 168170.5488
B95: Tariff V West Non-Domestic | C95: 6719.865144 | D95: 6723.602528 | E95: 6723.602528 | F95: 6730.962648 | G95: 6738.330406 | H95: 6745.846609 | I95: 6753.242801
B96: Tariff V Adjoining Central Domestic | C96: 2491.952976 | D96: 2587.286538 | E96: 2587.286538 | F96: 2780.214896 | G96: 2977.733405 | H96: 3179.965393 | I96: 3378.737384
B97: Tariff V Adjoining Central Non-Domestic | C97: 25.57645423 | D97: 25.87198827 | E97: 25.87198827 | F97: 26.47006618 | G97: 27.08237356 | H97: 27.70929272 | I97: 28.32548589
B98: Tariff V Adjoining West Domestic | C98: 12786.89889 | D98: 13031.41508 | E98: 13031.41508 | F98: 13545.90166 | G98: 14091.06309 | H98: 14646.77131 | I98: 15193.05877
B99: Tariff V Adjoining West Non-Domestic | C99: 316.5620866 | D99: 317.3200867 | E99: 317.3200867 | F99: 318.9149951 | G99: 320.6049956 | H99: 322.3276911 | I99: 324.0211822
B100: Tariff D West & Central
B101: Tariff D Adjoining West & Central
B102: Tariff M West & Central
B103: Tariff M Adjoining West & Central
B124: =IF(ISBLANK(B43),"",B43) -> 
B141: =IF(ISBLANK(B60),"",B60) -> 
B167: Total | C167: =SUM(C92:C166) -> 794255.2684 | D167: =SUM(D92:D166) -> 802610.5652 | E167: =SUM(E92:E166) -> 802610.5652 | F167: =SUM(F92:F166) -> 819581.1045 | G167: =SUM(G92:G166) -> 837097.8298 | H167: =SUM(H92:H166) -> 855145.0376 | I167: =SUM(I92:I166) -> 872651.4432
B169: S1.2.3 - TOTAL CUSTOMER CONNECTIONS
C170: VOLUMES
C171: 0's
C172: =VLOOKUP(CRCP_y4,'AER lookups'!$B$52:$C$101,2,0) -> 2022 | D172: =CONCATENATE("1 Jan-30 Jun "&(C172+1)) -> 1 Jan-30 Jun 2023 | E172: =FRCP_y1 -> 2023-24 | F172: =FRCP_y2 -> 2024-25 | G172: =FRCP_y3 -> 2025-26 | H172: =FRCP_y4 -> 2026-27 | I172: =FRCP_y5 -> 2027-28
B173: =IF(ISBLANK(B11),"",B11) -> Tariff V Central Domestic | C173: 14597.88417 | D173: 7654.957796 | E173: 15618.97677 | F173: 16167.88549 | G173: 16677.09026 | H173: 16231.62848 | I173: 15764.00139
B174: Tariff V Central Non-Domestic | C174: 103.7365414 | D174: 53.00610574 | E174: 107.1097516 | F174: 108.9559265 | G174: 110.6837128 | H174: 109.4471191 | I174: 108.1366909
B175: Tariff V West Domestic | C175: 2422.825523 | D175: 1310.558074 | E175: 2587.356064 | F175: 2593.046869 | G175: 2644.224749 | H175: 2608.751141 | I175: 2577.831605
B176: Tariff V West Non-Domestic | C176: 32.85827234 | D176: 16.7419858 | E176: 33.40097459 | F176: 33.44029781 | G176: 33.62106781 | H176: 33.53286503 | I176: 33.45846867
B177: Tariff V Adjoining Central Domestic | C177: 194.0739091 | D177: 99.55278792 | E177: 202.0093774 | F177: 207.2573859 | G177: 212.6444195 | H177: 209.8464532 | I177: 206.7738589
B178: Tariff V Adjoining Central Non-Domestic | C178: 0.5764542256 | D178: 0.2955340425 | E178: 0.5980779081 | F178: 0.6123073798 | G178: 0.6269191633 | H178: 0.6161931709 | I178: 0.6046542634
B179: Tariff V Adjoining West Domestic | C179: 518.5203696 | D179: 251.9682077 | E179: 529.9851521 | F179: 561.2899841 | G179: 572.4789415 | H179: 563.6894574 | I179: 554.2665027
B180: Tariff V Adjoining West Non-Domestic | C180: 1.56208656 | D180: 0.758000184 | E180: 1.5949084 | F180: 1.69000044 | G180: 1.722695486 | H180: 1.693491113 | I180: 1.662358956
B181: Tariff D West & Central
B182: Tariff D Adjoining West & Central
B183: Tariff M West & Central
B184: Tariff M Adjoining West & Central
B205: =IF(ISBLANK(B43),"",B43) -> 
B222: =IF(ISBLANK(B60),"",B60) -> 
B248: Total | C248: =SUM(C173:C247) -> 17872.03733 | D248: =SUM(D173:D247) -> 9387.838491 | E248: =SUM(E173:E247) -> 19081.03108 | F248: =SUM(F173:F247) -> 19674.17826 | G248: =SUM(G173:G247) -> 20253.09276 | H248: =SUM(H173:H247) -> 19759.2052 | I248: =SUM(I173:I247) -> 19246.73553
B250: S1.2.4 - TOTAL CUSTOMER DISCONNECTIONS
C251: VOLUMES
C252: 0's
C253: =VLOOKUP(CRCP_y4,'AER lookups'!$B$52:$C$101,2,0) -> 2022 | D253: =CONCATENATE("1 Jan-30 Jun "&(C253+1)) -> 1 Jan-30 Jun 2023 | E253: =FRCP_y1 -> 2023-24 | F253: =FRCP_y2 -> 2024-25 | G253: =FRCP_y3 -> 2025-26 | H253: =FRCP_y4 -> 2026-27 | I253: =FRCP_y5 -> 2027-28
B254: =IF(ISBLANK(B11),"",B11) -> Tariff V Central Domestic | C254: =+C173-(C92-C11) -> 1721.949195 | D254: =+D173-(D92-D11) -> 870.9400923 | E254: =+E173-(E92-E11) -> 15618.97677 | F254: 2331.439452 | G254: 2333.874916 | H254: 1422.715961 | I254: 1442.625891
B255: Tariff V Central Non-Domestic | C255: =+C174-(C93-C12) -> 63.82114301 | D255: 31.97565086 | E255: 107.1097516 | F255: 66.06294383 | G255: 66.21974522 | H255: 63.53949028 | I255: 63.74042689
B256: Tariff V West Domestic | C256: 208.2630827 | D256: 104.9500358 | E256: 2587.356064 | F256: 218.8146363 | G256: 267.5288178 | H256: 184.1694554 | I256: 191.9630876
B257: Tariff V West Non-Domestic | C257: 25.99312878 | D257: 13.00460088 | E257: 33.40097459 | F257: 26.08017789 | G257: 26.25331042 | H257: 26.0166618 | I257: 26.06227626
B258: Tariff V Adjoining Central Domestic | C258: 8.120933107 | D258: 4.219225819 | E258: 202.0093774 | F258: 14.32902846 | G258: 15.12590994 | H258: 7.614465001 | I258: 8.001868232
B259: Tariff V Adjoining Central Non-Domestic | C259: 0 | D259: 0 | E259: 0.5980779081 | F259: 0.01422947167 | G259: 0.01461178356 | H259: -0.01072599241 | I259: -0.01153890749
B260: Tariff V Adjoining West Domestic | C260: 14.62147935 | D260: 7.452019303 | E260: 529.9851521 | F260: 46.8034036 | G260: 27.3175094 | H260: 7.981236037 | I260: 7.979047042
B261: Tariff V Adjoining West Non-Domestic | C261: 0 | D261: 0 | E261: 1.5949084 | F261: 0.09509203994 | G261: 0.03269504674 | H261: -0.0292043737 | I261: -0.03113215675
B262: Tariff D West & Central
B263: Tariff D Adjoining West & Central
B264: Tariff M West & Central
B265: Tariff M Adjoining West & Central
B286: =IF(ISBLANK(B43),"",B43) -> 
B303: =IF(ISBLANK(B60),"",B60) -> 
B329: Total | C329: =SUM(C254:C328) -> 2042.768962 | D329: =SUM(D254:D328) -> 1032.541625 | E329: =SUM(E254:E328) -> 19081.03108 | F329: =SUM(F254:F328) -> 2703.638963 | G329: =SUM(G254:G328) -> 2736.367516 | H329: =SUM(H254:H328) -> 1711.99734 | I329: =SUM(I254:I328) -> 1740.329926
